Workbook

Sheet Spec (hidden)
B2: Items | D2: Current Equipment Qty | F2: Price | G2: Actual Spares Qty Required | H2: Replacement of Equipment Risk Factor | J2: Final Costing
B3: Tema Server | D3: 25 | F3: 33,800.00 | G3: 5 | H3: 15% | J3: =F3*G3 -> 169,000.00 | N3: =G3=BOQ!E48 -> TRUE | S3: =F3*G3 -> 169,000.00
B4: LONWorks Wiegand (A08) | D4: 116 | F4: 8,420.66 | G4: =H4*D4/3 -> 6 | H4: 15% | J4: =F4*G4 -> 48,839.83 | N4: =G4=BOQ!E49 -> FALSE | S4: 48,839.83
B5: Power Supply (A08) | D5: 116 | F5: 4,500.33 | G5: =H5*D5/3 -> 6 | H5: 15% | J5: =F5*G5 -> 26,101.91 | N5: =G5=BOQ!E50 -> FALSE | S5: 26,101.91
B6: Tema Power Supply | D6: 25 | F6: 7,688.44 | G6: 1 | H6: 15% | J6: 9,610.55 | N6: =G6=BOQ!E51 -> FALSE | S6: 9,610.55
B7: Reader | D7: 315 | F7: 14,999.00 | G7: 20 | H7: 20% | J7: 299,980.00 | N7: =G7=BOQ!E52 -> TRUE | S7: 299,980.00
B8: Rainshield | D8: 315 | F8: 9,500.00 | G8: 20 | H8: 15% | J8: 190,000.00 | N8: =G8=BOQ!E53 -> TRUE | S8: 190,000.00
B9: POE Switch | D9: 20 | F9: 11,700.00 | G9: 5 | H9: 20% | J9: 58,500.00 | N9: =G9=BOQ!E54 -> TRUE | S9: 58,500.00
B10: DIN Relay | D10: 72 | F10: 330.00 | G10: 11 | H10: 15% | J10: 3,630.00 | N10: =G10=BOQ!E55 -> TRUE | S10: 3,630.00
B11: MAME UPGRADE 100K Licence | D11: 315 | F11: 10,999.00 | G11: 20 | H11: 15% | J11: 219,980.00 | N11: =G11=BOQ!E56 -> TRUE | S11: 219,980.00
B12: MP300 2Geth - ODU | D12: 18 | F12: 39,700.35 | G12: 1 | H12: 15% | J12: 39,700.35 | N12: =G12=BOQ!E57 -> TRUE | S12: 39,700.35
B13: Mylar Cable 500m | D13: 140 | F13: 2,700.00 | G13: 20 | H13: 55% | J13: 54,000.00 | N13: =G13=BOQ!E58 -> TRUE | S13: 54,000.00
B14: CAT 6 - 500m | D14: 140 | F14: 2,500.00 | G14: 20 | H14: 55% | J14: 50,000.00 | N14: =G14=BOQ!E59 -> TRUE | S14: 50,000.00
B15: Media Convetors | D15: 10 | F15: 9,340.55 | G15: 2 | H15: 55% | J15: 17,124.34 | N15: =G15=BOQ!E60 -> FALSE | S15: 17,124.34
B16: Radio Links - 17000GHZ | D16: 10 | F16: 26,000.00 | G16: 8 | H16: 55% | J16: 208,000.00 | N16: =G16=BOQ!E61 -> TRUE | S16: 208,000.00
B17: Boom Gates | D17: 16 | F17: 24,765.99 | G17: 10 | H17: 15% | J17: 247,659.90 | N17: =G17=BOQ!E62 -> TRUE | S17: 247,659.90
B18: Ground Loops | D18: 500 | F18: 47.23 | G18: 500 | H18: 30% | J18: 23,615.00 | N18: =G18=BOQ!E63 -> TRUE | S18: 23,615.00
B19: Boom Logics | D19: 16 | F19: 2,500.00 | G19: 20 | H19: 35% | J19: 50,000.00 | N19: =G19=BOQ!E64 -> TRUE | S19: 50,000.00
B20: Gibic | D20: 12 | F20: 14,768.01 | G20: 2 | H20: 45% | J20: 26,582.42 | N20: =G20=BOQ!E65 -> FALSE | S20: 26,582.42
B21: RJ45 | D21: 2000 | F21: 20.45 | G21: 500 | H21: 65% | J21: 10,225.00 | N21: =G21=BOQ!E66 -> TRUE | S21: 10,225.00
B22: Gooseneck reader | D22: 315 | F22: 8,700.33 | G22: 20 | H22: 25% | J22: 174,006.60 | N22: =G22=BOQ!E67 -> TRUE | S22: =F22*G22 -> 174,006.60
B23: Vehicle Tag Box | D23: 18 | F23: 9,500.33 | G23: 10 | H23: 15% | J23: 95,003.30 | N23: =G23=BOQ!E68 -> TRUE | S23: =F23*G23 -> 95,003.30
J24: =SUM(J3:K23) -> 2,021,559.20 | N24: =G24=BOQ!E69 -> TRUE
B25: LABOUR
B26: Description | D26: Resource | F26: Monthly | J26: Total 1yr - Costing
B27: Database Administrator | D27: 1 | F27: 35,000.00 | J27: =F27*12 -> 420,000.00
B28: Supervisor | D28: 1 | F28: 25,000.00 | J28: =F28*12 -> 300,000.00 | M28: =F28/20 -> 1,250.00 | N28: =M28/8 -> 156.25
B29: Instrument Technician | D29: 4 | F29: =55*180*4 -> 39,600.00 | J29: =F29*12 -> 475,200.00 | M29: =F29/20 -> 1,980.00 | N29: =M29/8 -> 247.50 | P29: =559200/4 -> 139800 | Q29: =P29/20 -> 6990 | R29: =Q29/8 -> 873.75
B30: Site Working Vehicle | D30: 1 | F30: 15,000.00 | J30: =F30*12 -> 180,000.00
B31: Staff Transportation | D31: 1 | F31: 15,000.00 | J31: =F31*12 -> 180,000.00 | M31: =(151800/12)*1.08 -> 13662
J32: =SUM(J27:K31) -> 1,555,200.00
B35: Safety Induction | J35: =7300 -> 7,300.00
I36: 3 Years
B38: PLA Bonus | I38: =16*12*2*34 -> 13056 | J38: =I38 -> 13,056.00
B40: Total 12 months Cost | J40: =J36+J32+J24+J38 -> 3,589,815.20
B41: Monthly Cost | J41: =J40/12 -> 299151.27 | N41: =J40-BOQ!G71 -> 3,589,815.20

Sheet BOQ
B3: Project: | C3: KUSILE POWER STATION
B4: Package Name: | C4: BIOMETRICS MAINTENANCE
B5: BILL OF QUANTITIES
B9: ITEM NO | C9: DESCRIPTION | D9: UNIT | E9: QTY | F9: RATE | G9: AMOUNT
B10: .
B11: 1.00 | C11: Preliminary and General
B13: 1.10 | C13: Fixed Preliminaries
B15: 1.1.1 | C15: Health & Safety related costs including PPE | D15: SUM | E15: 1 | F15: 0 | G15: =F15*E15 -> 0
B17: 1.1.2 | C17: PLA Bonus Provision | D17: SUM | E17: 1 | F17: 0 | G17: =F17*E17 -> 0
B19: 1.1.3 | C19: Contractual requirements - Insurances, SD&L, etc. | D19: SUM | E19: 1.00 | F19: 0 | G19: =F19*E19 -> 0
B21: 1.1.4 | C21: Site Establishment of facilities and Equipments | D21: SUM | E21: 1.00 | F21: 0 | G21: =F21*E21 -> 0
B23: 1.1.5 | C23: Site De-establishment | D23: SUM | E23: 1.00 | F23: 0 | G23: =F23*E23 -> 0
C25: Total Fixed Preliminaries | G25: =SUM(G15:G24) -> 0
B27: 1.20 | C27: Time related Preliminaries
B29: 1.2.1 | C29: Supervision for duration of construction | D29: Month | E29: 12 | F29: 0 | G29: =E29*F29 -> 0
B31: 1.2.2 | C31: Provision of Instrument Technicians | D31: Month | E31: 12 | F31: 0 | G31: =E31*F31 -> 0
B33: 1.2.3 | C33: Provision of Database Administrator | D33: Month | E33: 12 | F33: 0 | G33: =E33*F33 -> 0
B35: 1.2.4 | C35: Staff & Site transportation | D35: Month | E35: 12 | F35: 0 | G35: =E35*F35 -> 0
B37: 1.2.5 | C37: Operation and maintenance of facilities and equipments on site | D37: Sum | E37: 1 | F37: 0 | G37: =E37*F37 -> 0
B39: 1.2.6 | C39: Partnership Agreement Bonus (maximum of 5 employees) | D39: Year | E39: 1 | F39: 0 | G39: =E39*F39 -> 0
C42: Total Time Related Preliminaries | G42: =SUM(G28:G41) -> 0
C44: Total Preliminary and General | G44: =G25+G42 -> 0
B46: 2.00 | C46: MAIN WORKS
B48: 2.01 | C48: Tema Server | D48: No | E48: 5 | F48: 0 | G48: =E48*F48 -> 0
B49: 2.02 | C49: LONWorks Wiegand (A08) | D49: No | E49: 6 | F49: 0 | G49: 0
B50: 2.03 | C50: Power Supply (A08) | D50: No | E50: 6 | F50: 0 | G50: 0
B51: 2.04 | C51: Tema Power Supply | D51: No | E51: 1 | F51: 0 | G51: 0
B52: 2.05 | C52: Reader | D52: No | E52: 20 | F52: 0 | G52: 0
B53: 2.06 | C53: Rainshield | D53: No | E53: 20 | F53: 0 | G53: 0
B54: =B53+0.01 -> 2.07 | C54: POE Switch | D54: No | E54: 5 | F54: 0 | G54: 0
B55: =B54+0.01 -> 2.08 | C55: DIN Relay | D55: No | E55: 11 | F55: 0 | G55: 0
B56: 2.09 | C56: MAME UPGRADE 100K | D56: No | E56: 20 | F56: 0 | G56: 0
B57: 2.10 | C57: MP300 2Geth - ODU | D57: No | E57: 1 | F57: 0 | G57: 0
B58: 2.11 | C58: Mylar Cable 500m | D58: No | E58: 20 | F58: 0 | G58: 0
B59: 2.12 | C59: CAT 6 - 500m | D59: No | E59: 20 | F59: 0 | G59: 0
B60: 2.13 | C60: Media Convetors | D60: No | E60: 2 | F60: 0 | G60: 0
B61: 2.14 | C61: Radio Links - 17000GHZ | D61: No | E61: 8 | F61: 0 | G61: 0
B62: 2.15 | C62: Boom Gates | D62: No | E62: 10 | F62: 0 | G62: =E62*F62 -> 0
B63: 2.16 | C63: Ground Loops | D63: No | E63: 500 | F63: 0 | G63: 0
B64: 2.17 | C64: Boom Logics | D64: No | E64: 20 | F64: 0 | G64: 0
B65: 2.18 | C65: Gibic | D65: No | E65: =F65*B65/3 -> 0 | F65: 0 | G65: 0
B66: 2.19 | C66: RJ45 | D66: No | E66: 500 | F66: 0 | G66: 0
B67: 2.20 | C67: Gooseneck reader | D67: No | E67: 20 | F67: 0 | G67: 0
B68: 2.21 | C68: Vehicle Tag Box | D68: No | E68: 10 | F68: 0 | G68: 0
C69: MAIN WORKS | G69: =SUM(G48:G68) -> 0
C71: TOTAL ESTIMATED AMOUNT EX. VAT | G71: =G69+G44 -> 0

Sheet ADJ (hidden)
D3: R68,400.00
D5: R85,900.00
D7: R32,000.00
B10: CPA CALCULATIONS
B12: Table B1 - CPI headline index numbers (Dec 2016=10)
F13: Jan'23 | G13: Jan'23 | H13: Jan'23 | I13: Jan'23 | J13: Jan'23
B14: CPA COMPONENT | C14: BASE DATE | D14: PROPORTION | E14: BASE INDEX | F14: Contractual Req | G14: Site Establishment | H14: Jan'24 | I14: Jan'24 | J14: Jan'24
B15: STATS SA table B - CPI | C15: 2020-07-01 | D15: 0.85 | E15: 93.70 | F15: 100.20 | G15: 100.20 | H15: 100.20 | I15: 100.20 | J15: 100.20
B16: FIXED | D16: 0.15
D17: CPA FACTOR | F17: =D16+((F15/E15)*D15)-1 -> 0.059 | G17: =D16+((F15/E15)*D15)-1 -> 0.059 | H17: =D16+((H15/E15)*D15)-1 -> 0.059 | I17: =D16+((I15/E15)*D15)-1 -> 0.059 | J17: =D16+((J15/E15)*D15)-1 -> 0.059
B18: AMOUNT SUBJECT TO CPA | F18: R 68,400.00 | G18: R 85,900.00 | H18: 32000 | I18: R60,000.00 | J18: R42,000.00
B20: CPA AMOUNT (UPDATED) | F20: =(F18*F17) -> R 4,033.19 | G20: =(G18*G17) -> R 5,065.07 | H20: =(H18*H17) -> R1,886.87 | I20: =(I18*I17) -> R3,537.89 | J20: =(J18*J17) -> R2,476.52
B21: CUMMULATIVE CPA AMOUNT
F22: =F18+F20 -> R72,433.19 | G22: =G18+G20 -> R90,965.07 | H22: =H18+H20 -> R33,886.87 | I22: =J18+I20 -> R45,537.89 | J22: =J18+J20 -> R44,476.52
F23: 72433.19 | G23: 90965.07 | H23: 33886.87 | I23: 45537.89 | J23: 44476.52

Sheet Sheet8 (hidden)
A2: Project: | B2: KUSILE POWER STATION
A3: Enquiry No.
A4: Package Name: | B4: BIOMETRICS MAINTENANCE
A5: Tenderer's Name:
F7: CPA
A8: ITEM NO | B8: DESCRIPTION | C8: UNIT | D8: QTY | E8: 2021 RATE | F8: CPA | G8: Rate | J8: R1,993,713.41
A9: .
A10: 1.00 | B10: Preliminary and General
A12: 1.10 | B12: Fixed Preliminaries
A14: 1.1.1 | B14: Contractual requirements - Insurances, SD&L, etc. | C14: SUM | D14: 0 | E14: 68400 | F14: 3520 | G14: =F14+E14 -> R71,920.00 | I14: R71,920.00 | J14: =E14/J8 -> 0.03
A16: 1.1.2 | B16: Site Establishment of facilities and Equipments | C16: SUM | D16: 0 | E16: 85900 | F16: 4539 | G16: =F16+E16 -> R90,439.00 | I16: 90439 | J16: =E16/J8 -> 4%
A18: 1.1.3 | B18: Health & Safety related costs including PPE | C18: SUM | D18: 0 | E18: 25000 | F18: 1017 | G18: =F18+E18 -> R26,017.00 | I18: 26017 | J18: =E18/J8 -> 1%
A20: 1.1.4 | B20: Site De-establishment | C20: SUM | D20: 0 | E20: 32000 | F20: 1982 | G20: =F20+E20 -> R33,982.00 | I20: 33982 | J20: =E20/J8 -> 2%
B22: Total Fixed Preliminaries | G22: =SUM(G14:G21) -> R222,358.00
A24: 1.20 | B24: Time related Preliminaries
A26: 1.2.1 | B26: Operation and maintenance of facilities and equipments on site | C26: Sum | D26: 0 | E26: 60000 | F26: 3842 | G26: =F26+E26 -> R63,842.00 | I26: 63842
A28: 1.2.2 | B28: Supervision for duration of construction | C28: Sum | D28: 1.00 | E28: 129600 | F28: 8460 | G28: =F28+E28 -> R138,060.00 | I28: 138060
A30: 1.2.3 | B30: Staff transportation and site transpor (6 Passangers) | C30: Sum | D30: 1.00 | E30: 151680 | F30: 8424 | G30: =F30+E30 -> R160,104.00 | I30: 160104
A32: 1.2.4 | B32: Provision of Instrument Technicians (4 OFF) | C32: Sum | D32: 1.00 | E32: 595200 | F32: 48200 | G32: =F32+E32 -> R643,400.00
A34: 1.2.4 | B34: Provision of Database Administrator | C34: Sum | D34: 1.00 | E34: 84000 | F34: 6779 | G34: =F34+E34 -> R90,779.00
A36: 1.2.6 | B36: Partnership Agreement Bonus (maximum of 5 employees) | C36: Years | D36: 0 | E36: 420000 | F36: 31899 | G36: =F36+E36 -> R451,899.00
B38: Total Time Related Preliminaries | G38: =SUM(G25:G37) -> R1,548,084.00
B40: Total Preliminary and General | G40: =G22+G38 -> R1,770,442.00
A42: 2.00 | B42: MAIN WORKS
A44: 2.01 | B44: Tema Server | C44: No | D44: 4.00 | E44: 21890 | F44: 1166 | G44: =F44+E44 -> R23,056.00
A45: 2.02 | B45: LONWorks Wiegand (A08) | C45: No | D45: 15.00 | E45: 2080 | F45: =E45*0.08 -> 166.4 | G45: =F45+E45 -> R2,246.40
A46: 2.03 | B46: Power Supply (A08) | C46: No | D46: 15.00 | E46: 650 | F46: =E46*0.08 -> 52 | G46: R702.00
A47: 2.04 | B47: Tema Power Supply | C47: No | D47: 3.00 | E47: 7890 | F47: 631.2 | G47: R8,521.20
A48: 2.05 | B48: Battery 12 VDC Relay | C48: No | D48: 46.00 | E48: 302.8 | F48: 24.224 | G48: R327.02
A49: 2.06 | B49: Reader | C49: No | D49: 58.00 | E49: 14.9 | F49: 1.192 | G49: R16.09
A50: 2.07 | B50: Rainshield | C50: No | D50: 16.00 | E50: 890.2 | F50: 71.216 | G50: R961.42
A51: 2.08 | B51: POE Switch | C51: No | D51: 4.00 | E51: 6890 | F51: 551.2 | G51: R7,441.20
A52: 2.09 | B52: DIN Relay | C52: No | D52: 11.00 | E52: 498 | F52: 39.84 | G52: R537.84
A53: 2.10 | B53: MAME UPGRADE 100K | C53: No | D53: 58.00 | E53: 1256 | F53: 100.48 | G53: R1,356.48
A54: 2.11 | B54: MP300 2Geth - ODU | C54: No | D54: 3.00 | E54: 96110 | F54: 7688.8 | G54: R103,798.80
A55: 2.14 | B55: Mylar Cable 500m | C55: No | D55: 26.00 | E55: 1298 | F55: 103.84 | G55: R1,401.84
A56: 2.15 | B56: CAT 6 - 500m | C56: No | D56: 26.00 | E56: 1090 | F56: 87.2 | G56: R1,177.20
A57: 2.25 | B57: Media Convetors | C57: No | D57: 2.00 | E57: 921.7 | F57: 73.736 | G57: R995.44
A58: 2.26 | B58: Radio Links - 17000GHZ | C58: No | D58: 2.00 | E58: 98790 | F58: 7903.2 | G58: R106,693.20
A59: 2.27 | B59: Boom Gates | C59: No | D59: 4.00 | E59: 28900 | F59: 2312 | G59: R31,212.00
A60: 2.28 | B60: Ground Loops | C60: No | D60: 50.00 | E60: 320.8 | F60: 25.664 | G60: R346.46
A61: 2.29 | B61: Boom Logics | C61: No | D61: 2.00 | E61: 1098 | F61: 87.84 | G61: R1,185.84
A62: 2.30 | B62: Gibic | C62: No | D62: 2.00 | E62: 209.1 | F62: 16.728 | G62: R225.83
A63: 2.31 | B63: RJ45 | C63: No | D63: 433.00 | E63: 5 | F63: 0.4 | G63: R5.40
A64: 2.32 | B64: Extended Memory Card | C64: No | D64: 26.00 | E64: 623.9 | F64: 49.912 | G64: R673.81
A65: 2.33 | B65: Vehicle Tag Box | C65: No | D65: 3.00 | E65: 1090.1 | F65: 87.208 | G65: R1,177.31
B66: MAIN WORKS | G66: =SUM(G44:G65) -> R294,058.78
B68: TOTAL TENDER AMOUNT EXCLUDING VAT | G68: =G66+G40 -> R2,064,500.78

Sheet Sheet6 (hidden)
A1: Cost Price Adjustment
D3: =Sheet8!E44 -> 21890
C6: CPA Calculation
C7: Approved Inspection Authority services (AIAs)-ORIGINAL BASE TO DECEMBER 2021
C8: Components | D8: Weighting % | E8: Table | F8: Months Prior (Base Month) | G8: Final Index Month | H8: Base Index | I8: Ruling Index | J8: Factor | K8: CPA Amount
B9: A | C9: Fixed Portion | D9: 0.00%
B11: B | C11: Variable | D11: 100.00% | E11: CPI SEIFSA table D-2 | F11: 2021/03 | G11: 2022-08-31 | H11: 95.40 | I11: 103.10 | J11: =IF(H11>0,ROUND(((I11-H11)/H11)*D11,6),"") -> 8.07%
C14: Total | D14: 100.00% | J14: 8.30% | K14: 0.00
J15: Base Amount x Factor | K15: =D3*J11 -> 1,766.81
J16: Control =Zero | K16: =K15+D3 -> 23,656.81
A18: Total CPA Amount | B18: X | C18: 0.00
A19: Less previous claim | C19: 0.00
A20: Updated CPA Due | C20: 0.00
A21: Total Claimed by Supplier | B21: Y | C21: 0.00
A22: Difference | B22: Z | C22: 0.00 | D22: ACCEPT THEIR CLAIM NO CREDIT NOTE

Sheet Sheet1 (hidden)
A2: KUSILE Power Station
A3: BUDGET ESTIMATE
A4: Package: | C4: P37A
A5: Department: | C5: Maintenance
A6: Project: | C6: P37A C&I, Electrical and Mechanical Workshop Off-Shelf Tools & Equipment
A9: Item No | B9: Description | C9: Category | D9: Building | E9: Specification | F9: Brand | G9: Installation | H9: QTY | I9: RATE | J9: AMOUNT
A11: 1 | B11: "D" Shackle | C11: Tools | D11: Section 42 Workshop | E11: 750kg | G11: No | H11: 2 | I11: 7.40 | J11: =I11*H11 -> 14.80
A12: 2 | B12: "D" Shackle | C12: Tools | D12: Section 42 Workshop | E12: 1.5 Ton | G12: No | H12: 5 | I12: 11.65 | J12: 58.25
A13: 3 | B13: "D" Shackle | C13: Tools | D13: Section 42 Workshop | E13: 2 Ton | G13: No | H13: 8 | I13: 16.50 | J13: 132.00
A14: 4 | B14: "D" Shackle | C14: Tools | D14: Section 42 Workshop | E14: 3 Ton | G14: No | H14: 3 | I14: 23.00 | J14: 69.00
A15: 5 | B15: "D" Shackle | C15: Tools | D15: Section 42 Workshop | E15: 3.25 Ton | G15: No | H15: 2 | I15: 23.00 | J15: 46.00
A16: 6 | B16: "D" Shackle | C16: Tools | D16: Section 42 Workshop | E16: 3.75 Ton | G16: No | H16: 2 | I16: 23.00 | J16: 46.00
A17: 7 | B17: "D" Shackle | C17: Tools | D17: Section 42 Workshop | E17: 4.75 Ton | G17: No | H17: 3 | I17: 37.00 | J17: 111.00
A18: 8 | B18: "D" Shackle | C18: Tools | D18: Section 42 Workshop | E18: 7 Ton | G18: No | H18: 2 | I18: 96.00 | J18: 192.00
A19: 9 | B19: "D" Shackle | C19: Tools | D19: Section 42 Workshop | E19: 9 Ton | G19: No | H19: 2 | I19: 105.00 | J19: 210.00
A20: 10 | B20: "D" Shackle | C20: Tools | D20: Section 42 Workshop | E20: 10 Ton | G20: No | H20: 2 | I20: 153.00 | J20: 306.00
A21: 11 | B21: "D" Shackle | C21: Tools | D21: Section 42 Workshop | E21: 13 Ton | G21: No | H21: 2 | I21: 190.00 | J21: 380.00
A22: 12 | B22: "D" Shackle | C22: Tools | D22: Section 42 Workshop | E22: 200 Ton | G22: No | H22: 2 | I22: 1,650.00 | J22: 3,300.00
A23: 13 | B23: "D" Shackle | C23: Tools | D23: Batch Plant Workshop | E23: 750kg | G23: No | H23: 2 | I23: 7.40 | J23: 14.80
A24: 14 | B24: "D" Shackle | C24: Tools | D24: Batch Plant Workshop | E24: 1.5 Ton | G24: No | H24: 5 | I24: 11.65 | J24: 58.25
A25: 15 | B25: "D" Shackle | C25: Tools | D25: Batch Plant Workshop | E25: 2 Ton | G25: No | H25: 8 | I25: 16.50 | J25: 132.00
A26: 16 | B26: "D" Shackle | C26: Tools | D26: Batch Plant Workshop | E26: 3 Ton | G26: No | H26: 4 | I26: 23.00 | J26: 92.00
A27: 17 | B27: "D" Shackle | C27: Tools | D27: Batch Plant Workshop | E27: 3.25 Ton | G27: No | H27: 4 | I27: 23.00 | J27: 92.00
A28: 18 | B28: "D" Shackle | C28: Tools | D28: Batch Plant Workshop | E28: 3.75 Ton | G28: No | H28: 2 | I28: 23.00 | J28: 46.00
A29: 19 | B29: "D" Shackle | C29: Tools | D29: Batch Plant Workshop | E29: 4.75 Ton | G29: No | H29: 3 | I29: 37.00 | J29: 111.00
A30: 20 | B30: "D" Shackle | C30: Tools | D30: Batch Plant Workshop | E30: 7 Ton | G30: No | H30: 2 | I30: 96.00 | J30: 192.00
A31: 21 | B31: "D" Shackle | C31: Tools | D31: Batch Plant Workshop | E31: 9 Ton | G31: No | H31: 2 | I31: 105.00 | J31: 210.00
A32: 22 | B32: "D" Shackle | C32: Tools | D32: Batch Plant Workshop | E32: 10 Ton | G32: No | H32: 2 | I32: 153.00 | J32: 306.00
A33: 23 | B33: "D" Shackle | C33: Tools | D33: Batch Plant Workshop | E33: 13 Ton | G33: No | H33: 2 | I33: 190.00 | J33: 380.00
A34: 24 | B34: "D" Shackle | C34: Tools | D34: Batch Plant Workshop | E34: 200 Ton | G34: No | H34: 2 | I34: =I22 -> 1,650.00 | J34: 3,300.00
A35: 25 | B35: 0 - 150mm outside micrometer | C35: Tools | D35: Section 42 Workshop | E35: Type: Standard Range: 0 -150mm Graduation: 0.01mm, 0,001mm Accuracy: ±2µm Flatness: 0.6µm Measuring Faces: Carbide Parallelism: (2+R/100)µm, R = max. range (mm) | F35: Mitutoyo | G35: No | H35: 2 | I35: =250*14 -> 3,500.00 | J35: 7,000.00
A36: 26 | B36: 0 - 150mm outside micrometer | C36: Tools | D36: Batch Plant Workshop | E36: Type: Standard Range: 0 -150mm Graduation: 0.01mm, 0,001mm Accuracy: ±2µm Flatness: 0.6µm Measuring Faces: Carbide Parallelism: (2+R/100)µm, R = max. range (mm) | F36: Mitutoyo | G36: No | H36: 2 | I36: =250*14 -> 3,500.00 | J36: 7,000.00
A37: 27 | B37: 0 - 25mm Outside micrometer | C37: Tools | D37: Section 42 Workshop | E37: Baked enamel finished frame Carbide measuring faces Equipped with ratchet stop for constant measuring force Maximum measuring range up to 25mm 0.01mm of graduation Accuracy of ±2µm | F37: Mitutoyo | G37: No | H37: 3 | I37: =68.64*18 -> 1,235.52 | J37: 3,706.56
A38: 28 | B38: 0 - 25mm Outside micrometer | C38: Tools | D38: Batch Plant Workshop | E38: Baked enamel finished frame Carbide measuring faces Equipped with ratchet stop for constant measuring force Maximum measuring range up to 25mm 0.01mm of graduation Accuracy of ±2µm | F38: Mitutoyo | G38: No | H38: 3 | I38: =1430/1.15 -> 1,243.48 | J38: 3,730.43
A39: 29 | B39: 11 drawer roller cabinet | C39: Tools | D39: Section 42 Workshop | E39: Height: 1435 mm Width: 705 mm Depth: 485 mm Qty lengthwise dividers: 16x Piece Qty crosswise dividers: 4x Piece Weight: 123 kg Number of drawers: 11 Piece | F39: GEDORE | G39: No | H39: 4 | I39: 22,002.41 | J39: 88,009.64
A40: 30 | B40: 11 drawer roller cabinet | C40: Tools | D40: Batch Plant Workshop | E40: Height: 1435 mm Width: 705 mm Depth: 485 mm Qty lengthwise dividers: 16x Piece Qty crosswise dividers: 4x Piece Weight: 123 kg Number of drawers: 11 Piece | F40: GEDORE | G40: No | H40: 4 | I40: 22,002.41 | J40: 88,009.64
A41: 31 | B41: 12mm boring bar iso insert type tpmr | C41: Tools | D41: Section 42 Workshop | G41: No | H41: 6 | I41: 365.00 | J41: 2,190.00
A42: 32 | B42: 16mm boring bar iso insert type tpmr | C42: Tools | D42: Section 42 Workshop | G42: No | H42: 6 | I42: 45.60 | J42: 273.60
A43: 33 | B43: 2 Legged Chain sling | C43: Tools | D43: Section 42 Workshop | E43: 1 Ton | G43: No | H43: 2 | I43: 385.00 | J43: 770.00
A44: 34 | B44: 2 Legged Chain sling | C44: Tools | D44: Batch Plant Workshop | E44: 1 Ton | G44: No | H44: 2 | I44: 385.00 | J44: 770.00
A45: 35 | B45: 2 Legged Steel sling | C45: Tools | D45: Section 42 Workshop | E45: 500kg | H45: 2 | I45: 385.00 | J45: 770.00
A46: 36 | B46: 2 Legged Steel sling | C46: Tools | D46: Batch Plant Workshop | E46: 500kg | G46: No | H46: 2 | I46: 385.00 | J46: 770.00
A47: 37 | B47: 200mm scriber | C47: Tools | D47: Batch Plant Workshop | E47: LIS-31800, LIS31800; Features and Benefits: Ideal for marking most metal and softer material surfaces. Comes with straight and 90 degree points to mark in even the tightest places Heat-treated carbon steel | G47: No | H47: 10 | I47: 37.41 | J47: 374.10
A48: 38 | B48: 2020 left hand turning tool iso insert type tpmr (Lathe cutting tool insert) | C48: Tools | D48: Section 42 Workshop | H48: 6 | I48: 283.43 | J48: 1,700.58
A49: 39 | B49: 2020 right turning tool iso insert type tpmr | C49: Tools | D49: Section 42 Workshop | H49: 6 | I49: 283.43 | J49: 1,700.58
A50: 40 | B50: 20mm boring bar iso insert type tpmr | C50: Tools | D50: Section 42 Workshop | H50: 6 | I50: 59.90 | J50: 359.40
A51: 41 | B51: 20mm internal thread cutting boring bar top clamp | C51: Tools | D51: Section 42 Workshop | H51: 6 | I51: 59.90 | J51: 359.40
A52: 42 | B52: 25 - 50mm inside micrometer | C52: Tools | D52: Section 42 Workshop | E52: Interchangeable rod type Graduation: 0.01mm Travel of head: 7mm with 2 rods | F52: Mitutoyo | H52: 2 | I52: 1,690.00 | J52: 3,380.00
A53: 43 | B53: 25 - 50mm inside micrometer | C53: Tools | D53: Batch Plant Workshop | E53: Interchangeable rod type Graduation: 0.01mm Travel of head: 7mm with 2 rods | F53: Mitutoyo | G53: No | H53: 2 | I53: 1,690.00 | J53: 3,380.00
A54: 44 | B54: 25 - 50mm outside micrometer | C54: Tools | D54: Section 42 Workshop | E54: Type: Standard Range: 25 -50mm Graduation: 0.01mm Accuracy: ±2µm Flatness: 0.6µm Measuring Faces: Carbide Parallelism: (2+R/100)µm, R = max. range (mm) | F54: Mitutoyo | H54: 3 | I54: =1640/1.15 -> 1,426.09 | J54: 4,278.26
A55: 45 | B55: 25 - 50mm outside micrometer | C55: Tools | D55: Batch Plant Workshop | E55: Type: Standard Range: 25 -50mm Graduation: 0.01mm Accuracy: ±2µm Flatness: 0.6µm Measuring Faces: Carbide Parallelism: (2+R/100)µm, R = max. range (mm) | F55: Mitutoyo | G55: No | H55: 3 | I55: 1,690.00 | J55: 5,070.00
A56: 46 | B56: 2525 left hand turning tool iso insert type tpmr | C56: Tools | D56: Section 42 Workshop | H56: 6 | I56: 259.00 | J56: 1,554.00
A57: 47 | B57: 2525 right turning tool iso insert type tpmr | C57: Tools | D57: Section 42 Workshop | H57: 6 | I57: 259.00 | J57: 1,554.00
A58: 48 | B58: 25mm boring bar iso insert type tpmr | C58: Tools | D58: Section 42 Workshop | H58: 6 | I58: 259.00 | J58: 1,554.00
A59: 49 | B59: 300mm hacksaw blade | C59: Tools | D59: Batch Plant Workshop | E59: Hacksaw blade 18,24 and 32 TPI - pack of 10. For 435mm Hacksaw | F59: GEDORE | G59: No | H59: 100 | I59: =(200/50)/1.15 -> 3.48 | J59: 347.83
A60: 50 | B60: 300mm steel ruler | C60: Tools | D60: Batch Plant Workshop | E60: Stainless steel ruler 300mm | F60: GEDORE | G60: No | H60: 12 | I60: =37 -> 37.00 | J60: 444.00
A61: 51 | B61: 4 Legged Chain sling | C61: Tools | D61: Section 42 Workshop | E61: 3,36 Ton | G61: No | H61: 2 | I61: 2,635.00 | J61: 5,270.00
A62: 52 | B62: 4 Legged Chain sling | C62: Tools | D62: Section 42 Workshop | E62: 6.62 Ton | G62: No | H62: 2 | I62: 2,200.00 | J62: 4,400.00
A63: 53 | B63: 4 Legged Chain sling | C63: Tools | D63: Section 42 Workshop | E63: 7.5Ton | G63: No | H63: 2 | I63: 2,045.00 | J63: 4,090.00
A64: 54 | B64: 4 Legged Chain sling | C64: Tools | D64: Batch Plant Workshop | E64: 3,36 Ton | G64: No | H64: 2 | I64: 825.00 | J64: 1,650.00
A65: 55 | B65: 4 Legged Chain sling | C65: Tools | D65: Batch Plant Workshop | E65: 6.62 Ton | G65: No | H65: 2 | I65: 2,200.00 | J65: 4,400.00
A66: 56 | B66: 4 Legged Chain sling | C66: Tools | D66: Batch Plant Workshop | E66: 7.5Ton | G66: No | H66: 2 | I66: 2,045.00 | J66: 4,090.00
A67: 57 | B67: 4 Legged Steel sling | C67: Tools | D67: Section 42 Workshop | E67: 4.5 Ton | G67: No | H67: 2 | I67: 820.00 | J67: 1,640.00
A68: 58 | B68: 4 Legged Steel sling | C68: Tools | D68: Section 42 Workshop | E68: 11 Ton | G68: No | H68: 2 | I68: 5,300.00 | J68: 10,600.00
A69: 59 | B69: 4 Legged Steel sling | C69: Tools | D69: Section 42 Workshop | E69: 16.8Ton | G69: No | H69: 4 | I69: 8,720.00 | J69: 34,880.00
A70: 60 | B70: 4 Legged Steel sling | C70: Tools | D70: Batch Plant Workshop | E70: 4.5 Ton | G70: No | H70: 2 | I70: 820.00 | J70: 1,640.00
A71: 61 | B71: 4 Legged Steel sling | C71: Tools | D71: Batch Plant Workshop | E71: 11 Ton | G71: No | H71: 2 | I71: 5,300.00 | J71: 10,600.00
A72: 62 | B72: 4 Legged Steel sling | C72: Tools | D72: Batch Plant Workshop | E72: 16.8Ton | G72: No | H72: 2 | I72: 8,720.00 | J72: 17,440.00
A73: 63 | B73: 5 compartment Sheet metal Electrician Toolbox | C73: Tools | D73: Section 42 Workshop | E73: Strong structure , Smooth operating hinges. Round carrying plastic handle and lockable with required tools inside. | G73: No | H73: 10 | I73: 683.00 | J73: 6,830.00
A74: 64 | B74: 50 - 200mm inside micrometer | C74: Tools | D74: Section 42 Workshop | E74: Type: Standard Range: 50 -200mm Graduation: 0.01mm Accuracy: ±(6+L/50)µm* Flatness: 0.6µm Head adjustment range: 13mm | F74: Mitutoyo | G74: No | H74: 2 | I74: 3,289.00 | J74: 6,578.00
A75: 65 | B75: 50 - 200mm inside micrometer | C75: Tools | D75: Batch Plant Workshop | E75: Type: Standard Range: 50 -200mm Graduation: 0.01mm Accuracy: ±(6+L/50)µm* Flatness: 0.6µm Head adjustment range: 13mm | F75: Mitutoyo | G75: No | H75: 2 | I75: 3,289.00 | J75: =I75*H75 -> 6,578.00
A76: 66 | B76: 5m steel measuring tape | C76: Tools | D76: Batch Plant Workshop | E76: 5m nylon measuring tape with belt clip. | F76: 3M | G76: No | H76: 10 | I76: 89.00 | J76: 890.00
A77: 67 | B77: 90 degree countersink 25mm dia x 10mm shank | C77: Tools | D77: Section 42 Workshop | G77: No | H77: 6 | I77: 482.80 | J77: 2,896.80
A78: 68 | B78: 90 degree countersink 25mm dia x 10mm shank | C78: Tools | D78: Batch Plant Workshop | G78: No | H78: 2 | I78: 482.80 | J78: 965.60
A79: 69 | B79: adjustable hacksaw 300mm | C79: Tools | D79: Section 42 Workshop | G79: No | H79: 3 | I79: 286.00 | J79: 858.00
A80: 70 | B80: adjustable hacksaw 300mm | C80: Tools | D80: Batch Plant Workshop | G80: No | H80: 2 | I80: 286.00 | J80: 572.00
A81: 71 | B81: Adjustable Wrenches | C81: Tools | D81: Batch Plant Workshop | E81: 18 inche | F81: GEDORE | G81: No | H81: 3 | I81: 347.00 | J81: 1,041.00
A82: 72 | B82: Adjustable Wrenches | C82: Tools | D82: Batch Plant Workshop | E82: 24 inche | F82: GEDORE | G82: No | H82: 3 | I82: 498.06 | J82: 1,494.18
A83: 73 | B83: Adjustable Wrenches | C83: Tools | D83: Section 42 Workshop | E83: 18 inch,WRENCH,ADJUSTABLE SHIFTER,H/DUTY,450MM | F83: GEDORE | G83: No | H83: 2 | I83: 347.00 | J83: 694.00
A84: 74 | B84: Adjustable Wrenches | C84: Tools | D84: Section 42 Workshop | E84: 24 inche, WRENCH,ADJUSTABLE SHIFTER,H/DUTY,600MM | F84: GEDORE | G84: No | H84: 2 | I84: 498.06 | J84: 996.12
A85: 75 | B85: Adjustable Wrenches | C85: Tools | D85: ERI Turbo Gen Services (TGS) Workshop 2 | E85: 18 inche, WRENCH,ADJUSTABLE SHIFTER,H/DUTY,450MM | F85: GEDORE | G85: No | H85: 2 | I85: 347.00 | J85: 694.00
A86: 76 | B86: Adjustable Wrenches | C86: Tools | D86: ERI Turbo Gen Services (TGS) Workshop 3 | E86: 24 inche, WRENCH,ADJUSTABLE SHIFTER,H/DUTY,600MM | F86: GEDORE | G86: No | H86: 2 | I86: 498.06 | J86: 996.12
A87: 77 | B87: Adjustable Wrenches | C87: Tools | D87: ERI Turbo Gen Services (TGS) Workshop 1 | E87: 18 inche, WRENCH,ADJUSTABLE SHIFTER,H/DUTY,450MM | F87: GEDORE | G87: No | H87: 1 | I87: 347.00 | J87: 347.00
A88: 78 | B88: Adjustable Wrenches | C88: Tools | D88: ERI Turbo Gen Services (TGS) Workshop 2 | E88: 24 inche, WRENCH,ADJUSTABLE SHIFTER,H/DUTY,600MM | F88: GEDORE | G88: No | H88: 1 | I88: 498.06 | J88: 498.06
A89: 79 | B89: Adjustable Wrenches | C89: Tools | D89: Section 42 Workshop | E89: 18 inche, WRENCH,ADJUSTABLE SHIFTER,H/DUTY,450MM | F89: GEDORE | G89: No | H89: 2 | I89: 347.00 | J89: 694.00
A90: 80 | B90: Adjustable Wrenches | C90: Tools | D90: Section 42 Workshop | E90: 24 inche, WRENCH,ADJUSTABLE SHIFTER,H/DUTY,600MM | F90: GEDORE | G90: No | H90: 2 | I90: 498.06 | J90: 996.12
A91: 81 | B91: Adjustable Wrenches | C91: Tools | D91: Mill Maintenance Workshop | E91: 18 inche, WRENCH,ADJUSTABLE SHIFTER,H/DUTY,450MM | F91: GEDORE | G91: No | H91: 2 | I91: 347.00 | J91: 694.00
A92: 82 | B92: Adjustable Wrenches | C92: Tools | D92: Mill Maintenance Workshop | E92: 24 inche, WRENCH,ADJUSTABLE SHIFTER,H/DUTY,600MM | F92: GEDORE | G92: No | H92: 2 | I92: 498.06 | J92: 996.12
A93: 83 | B93: Adjustable Wrenches | C93: Tools | D93: Welding Workshop | E93: 18 inche, WRENCH,ADJUSTABLE SHIFTER,H/DUTY,450MM | F93: GEDORE | G93: No | H93: 1 | I93: 347.00 | J93: 347.00
A94: 84 | B94: Adjustable Wrenches | C94: Tools | D94: Welding Workshop | E94: 24 inche, WRENCH,ADJUSTABLE SHIFTER,H/DUTY,600MM | F94: GEDORE | G94: No | H94: 1 | I94: 498.06 | J94: 498.06
A95: 85 | B95: Adjustable Wrenches | C95: Tools | D95: Batch Plant Workshop | E95: 18 inche,WRENCH,ADJUSTABLE SHIFTER,H/DUTY,450MM | F95: GEDORE | G95: No | H95: 2 | I95: 347.00 | J95: 694.00
A96: 86 | B96: Adjustable Wrenches | C96: Tools | D96: Batch Plant Workshop | E96: 24 inche, WRENCH,ADJUSTABLE SHIFTER,H/DUTY,600MM | F96: GEDORE | G96: No | H96: 2 | I96: 498.06 | J96: 996.12
A97: 87 | B97: Allen Keys - imperial set long arm 9 piece | C97: Tools | D97: Section 42 Workshop | G97: No | H97: 6 | I97: 326.60 | J97: 1,959.60
A98: 88 | B98: Allen Keys - imperial set long arm 9 piece | C98: Tools | D98: Batch Plant Workshop | G98: No | H98: 3 | I98: 326.60 | J98: 979.80
A99: 89 | B99: Allen Keys - metric set long arm 9 piece | C99: Tools | D99: Section 42 Workshop | G99: No | H99: 6 | I99: 326.60 | J99: 1,959.60
A100: 90 | B100: Allen Keys - metric set long arm 9 piece | C100: Tools | D100: Batch Plant Workshop | G100: No | H100: 3 | I100: 326.60 | J100: 979.80
A101: 91 | B101: Allen Keys Imperial | C101: Tools | D101: Batch Plant Workshop | E101: Imperial set, 1/16, 5/64, 3/32, 1/8, 5/32, 3/16, 7/32, 1/4, 5/16, 3/8". - 1/2" square | F101: Off the shelf | G101: No | H101: 14 | I101: 181.00 | J101: 2,534.00
A102: 92 | B102: Allen Keys Metric | C102: Tools | D102: Batch Plant Workshop | E102: Metric, 1.5mm, 2mm, 2.5mm, 3mm, 4mm, 5mm, 6mm, 8mm, 10mm. - 1/2" square | F102: Off the shelf | G102: No | H102: 14 | I102: 181.00 | J102: 2,534.00
A103: 93 | B103: Angle Grinder | C103: Tools | D103: Section 42 Workshop | E103: 2400W 230V 50 Hz 6000 rpm with spindle lock Blade size 230x22,2mm | F103: Bosch | G103: No | H103: 2 | I103: =2310/1.15 -> 2,008.70 | J103: 4,017.39
A104: 94 | B104: Angle Grinder | C104: Tools | D104: ERI Turbo Gen Services (TGS) Workshop 4 | E104: 2400W 230V 50 Hz 6000 rpm with spindle lock Blade size 230x22,2mm | G104: No | H104: 2 | I104: 2,008.70 | J104: 4,017.39
A105: 95 | B105: Angle Grinder | C105: Tools | D105: ERI Turbo Gen Services (TGS) Workshop 3 | E105: 2400W 230V 50 Hz 6000 rpm with spindle lock Blade size 230x22,2mm | G105: No | H105: 2 | I105: 2,008.70 | J105: 4,017.39
A106: 96 | B106: Angle Grinder | C106: Tools | D106: Section 42 Workshop | E106: 2400W 230V 50 Hz 6000 rpm with spindle lock Blade size 230x22,2mm | G106: No | H106: 2 | I106: 2,008.70 | J106: 4,017.39
A107: 97 | B107: Angle Grinder | C107: Tools | D107: Mill Maintenance Workshop | E107: 2400W 230V 50 Hz 6000 rpm with spindle lock Blade size 230x22,2mm | F107: Bosch | G107: No | H107: 2 | I107: 2,008.70 | J107: 4,017.39
A108: 98 | B108: Angle Grinder | C108: Tools | D108: Welding Workshop | E108: 2400W 230V 50 Hz 6000 rpm with spindle lock Blade size 230x22,2mm | G108: No | H108: 6 | I108: 2,008.70 | J108: 12,052.17
A109: 99 | B109: Angle Grinder | C109: Tools | D109: Batch Plant Workshop | E109: 2400W 230V 50 Hz 6000 rpm with spindle lock Blade size 230x22,2mm | F109: Bosch | G109: No | H109: 2 | I109: 2,008.70 | J109: 4,017.39
A110: 100 | B110: Angle Grinder - Air. | C110: Tools | D110: Section 42 Workshop | E110: Lever type throttle, Disc dia 178mm, Speed 7000rpm, Air pressure 630kPa, Motor 1 HP, Air hose 13mm | F110: Bosch | G110: No | H110: 2 | I110: 1,200.00 | J110: 2,400.00
A111: 101 | B111: Angle Grinder - Air. | C111: Tools | D111: Welding Workshop | E111: Lever type throttle, Disc dia 178mm, Speed 7000rpm, Air pressure 630kPa, Motor 1 HP, Air hose 13mm | F111: Bosch | G111: No | H111: 2 | I111: 1,200.00 | J111: 2,400.00
A112: 102 | B112: Angle Grinder - Air. | C112: Tools | D112: Batch Plant Workshop | E112: Lever type throttle, Disc dia 178mm, Speed 7000rpm, Air pressure 630kPa, Motor 1 HP, Air hose 13mm | F112: Bosch | G112: No | H112: 2 | I112: 1,200.00 | J112: 2,400.00
A113: 103 | B113: Angle Grinder - baby | C113: Tools | D113: Section 42 Workshop | E113: 900W 230V 50 Hz 11000 rpm with spindle lock Blade size 115x22,2mm | G113: No | H113: 2 | I113: 1,114.00 | J113: 2,228.00
A114: 104 | B114: Angle Grinder - baby | C114: Tools | D114: Welding Workshop | E114: 900W 230V 50 Hz 11000 rpm with spindle lock Blade size 115x22,2mm | F114: Bosch | G114: No | H114: 2 | I114: 1,114.00 | J114: 2,228.00
A115: 105 | B115: Angle Grinder - baby | C115: Tools | D115: Batch Plant Workshop | E115: 900W 230V 50 Hz 11000 rpm with spindle lock Blade size 115x22,2mm | G115: No | H115: 2 | I115: 1,114.00 | J115: 2,228.00
A116: 106 | B116: Angle iron rolling machine hydraulic | C116: Tools | D116: Welding Workshop | E116: BPRC/602/F/E | G116: No | H116: 1 | I116: 2,850.00 | J116: 2,850.00
A117: 107 | B117: Auma actuator test kit | C117: Tools | D117: Section 18 Auxiliary Bay Unit 1 | E117: Enquire with Auma | G117: No | H117: 1 | I117: =3680/1.15 -> 3,200.00 | J117: 3,200.00
A118: 108 | B118: BA Tap and Die Set in Wooden Box | C118: Tools | D118: Section 18 Auxiliary Bay Unit 2 | E118: BA 0 - 10 sizes 0, 1, 2, 3, 4, 5, 6, 7, 8, 9, 10 - Each set contains 2 Taps per size (Plug and Bottom Lead) with the corresponding Die, appropriate Tap wrench and Die Stock. | F118: HELLERMANN TYTON | G118: No | H118: 6 | I118: 3,879.90 | J118: 23,279.40
A119: 109 | B119: Baby Angle Grinder and blades | C119: Tools | D119: Section 18 Auxiliary Bay Unit 3 | E119: 900W 230V 50 Hz 11000 rpm with spindle lock Blade size 115x22,2mm | F119: MIKITA | G119: No | H119: 8 | I119: 444.00 | J119: 3,552.00
A120: 110 | B120: Beam Clamp | C120: Tools | D120: Section 42 Workshop | E120: 2 Ton | G120: No | H120: 2 | I120: 759.00 | J120: 1,518.00
A121: 111 | B121: Beam Clamp | C121: Tools | D121: Section 42 Workshop | E121: 3 Ton | G121: No | H121: 10 | I121: 835.00 | J121: 8,350.00
A122: 112 | B122: Beam Clamp | C122: Tools | D122: Section 42 Workshop | E122: 5 Ton | G122: No | H122: 10 | I122: 835.00 | J122: 8,350.00
A123: 113 | B123: Beam Clamp | C123: Tools | D123: Section 42 Workshop | E123: 5 Ton | G123: No | H123: 4 | I123: 444.00 | J123: 1,776.00
A124: 114 | B124: Beam Clamp | C124: Tools | D124: Batch Plant Workshop | E124: 2 Ton | G124: No | H124: 2 | I124: 759.00 | J124: 1,518.00
A125: 115 | B125: Beam Clamp | C125: Tools | D125: Batch Plant Workshop | E125: 3 Ton | G125: No | H125: 12 | I125: 835.00 | J125: 10,020.00
A126: 116 | B126: Beam Clamp | C126: Tools | D126: Batch Plant Workshop | E126: 5 Ton | G126: No | H126: 12 | I126: 835.00 | J126: 10,020.00
A127: 117 | B127: Beam Clamp | C127: Tools | D127: Batch Plant Workshop | E127: 5 Ton | G127: No | H127: 4 | I127: 835.00 | J127: 3,340.00
A128: 118 | B128: Bearing fitment kit | C128: Tools | D128: 16m level Workshop | E128: Kit consist of 36 impact rings, 3 impact sleeves and a deadblow hammer all included in a carry case | F128: SFK | G128: No | H128: 4 | I128: 7,613.00 | J128: 30,452.00
A129: 119 | B129: Bearing fitment kit | C129: Tools | D129: Section 42 Workshop | E129: Kit consist of 36 impact rings, 3 impact sleeves and a deadblow hammer all included in a carry case | G129: No | H129: 3 | I129: 7,613.00 | J129: 22,839.00
A130: 120 | B130: Bearing fitment kit | C130: Tools | D130: ERI Turbo Gen Services (TGS) Workshop 4 | E130: Kit consist of 36 impact rings, 3 impact sleeves and a deadblow hammer all included in a carry case | G130: No | H130: 1 | I130: 7,613.00 | J130: 7,613.00
A131: 121 | B131: Bearing fitment kit | C131: Tools | D131: Section 42 Workshop | E131: Kit consist of 36 impact rings, 3 impact sleeves and a deadblow hammer all included in a carry case | G131: No | H131: 1 | I131: 7,613.00 | J131: 7,613.00
A132: 122 | B132: Bearing fitment kit | C132: Tools | D132: Mill Maintenance Workshop | E132: Kit consist of 36 impact rings, 3 impact sleeves and a deadblow hammer all included in a carry case | G132: No | H132: 1 | I132: 7,613.00 | J132: 7,613.00
A133: 123 | B133: Bearing fitment kit | C133: Tools | D133: Batch Plant Workshop | E133: Kit consist of 36 impact rings, 3 impact sleeves and a deadblow hammer all included in a carry case | G133: No | H133: 3 | I133: 7,613.00 | J133: 22,839.00
A134: 124 | B134: Bearing heater | C134: Tools | D134: Section 42 Workshop | E134: 380 Vac, power 12.8kW, Max dia of work piece 560mm & Max width of work piece 210mm, Max Temp 240/400 deg C. Include induction yokes 23, 30, 40, 50, 60 and 70mm | G134: No | H134: 2 | I134: 36,900.00 | J134: 73,800.00
A135: 125 | B135: Bearing heater | C135: Tools | D135: Section 42 Workshop | E135: 240 Vdc Bearing size inner dia 20 - 100mm, width 50mm Temp control 0 -200 deg C | G135: No | H135: 2 | I135: 36,900.00 | J135: 73,800.00
A136: 126 | B136: Bearing heater | C136: Tools | D136: Batch Plant Workshop | E136: 380 Vac, power 12.8kW, Max dia of work piece 560mm & Max width of work piece 210mm, Max Temp 240/400 deg C. Include induction yokes 23, 30, 40, 50, 60 and 70mm | G136: No | H136: 2 | I136: 36,900.00 | J136: 73,800.00
A137: 127 | B137: Bearing heater | C137: Tools | D137: Batch Plant Workshop | E137: 240 Vdc Bearing size inner dia 20 - 100mm, width 50mm Temp control 0 -200 deg C | G137: No | H137: 1 | I137: 36,900.00 | J137: 36,900.00
A138: 128 | B138: Bearing puller sets Large | C138: Tools | D138: Section 42 Workshop | E138: 240 Vdc Bearing size inner dia 20 - 100mm, width 50mm Temp control 0 -200 deg C | G138: No | H138: 2 | I138: 8,200.00 | J138: 16,400.00
A139: 129 | B139: Bearing puller sets Large | C139: Tools | D139: ERI Turbo Gen Services (TGS) Workshop 5 | E139: 240 Vdc Bearing size inner dia 20 - 100mm, width 50mm Temp control 0 -200 deg C | F139: GEDORE | G139: No | H139: 2 | I139: 7,800.50 | J139: =I139*H139 -> 15,601.00
A140: 130 | B140: Bearing puller sets Large | C140: Tools | D140: Batch Plant Workshop | E140: 240 Vdc Bearing size inner dia 20 - 100mm, width 50mm Temp control 0 -200 deg C | G140: No | H140: 1 | I140: 8,200.00 | J140: 8,200.00
A141: 131 | B141: Bearing puller sets Medium | C141: Tools | D141: Section 42 Workshop | E141: 40 - 220mm, BEARING PULLER,3 LEGGES,TMMP30-230,40 TO 230MM | G141: No | H141: 2 | I141: 4,500.00 | J141: 9,000.00
A142: 132 | B142: Bearing puller sets Medium | C142: Tools | D142: ERI Turbo Gen Services (TGS) Workshop 6 | E142: 40 - 220mm, BEARING PULLER,3 LEGGES,TMMP30-230,40 TO 230MM | F142: GEDORE | G142: No | H142: 2 | I142: 3,777.77 | J142: 7,555.54
A143: 133 | B143: Bearing puller sets Medium | C143: Tools | D143: Batch Plant Workshop | E143: 40 - 220mm, BEARING PULLER,3 LEGGES,TMMP30-230,40 TO 230MM | G143: No | H143: 1 | I143: 4,500.00 | J143: 4,500.00
A144: 134 | B144: Bearing puller Small | C144: Tools | D144: Batch Plant Workshop | E144: 24 - 100mm | F144: SFK | G144: No | H144: 4 | I144: 1,120.00 | J144: 4,480.00
A145: 135 | B145: Bearing puller Small | C145: Tools | D145: Section 42 Workshop | E145: 24 - 100mm, BEARING PULLER,2 LEGGED,TMMP2-170,25 TO 170MM | G145: No | H145: 2 | I145: 1,120.00 | J145: 2,240.00
A146: 136 | B146: Bearing puller Small | C146: Tools | D146: ERI Turbo Gen Services (TGS) Workshop 7 | E146: 24 - 100mm, BEARING PULLER,2 LEGGED,TMMP2-170,25 TO 170MM | G146: No | H146: 2 | I146: 1,120.00 | J146: 2,240.00
A147: 137 | B147: Bearing puller Small | C147: Tools | D147: Batch Plant Workshop | E147: 24 - 100mm, BEARING PULLER,2 LEGGED,TMMP2-170,25 TO 170MM | G147: No | H147: 1 | I147: 1,120.00 | J147: 1,120.00
A148: 138 | B148: Bench Vice | C148: Tools | D148: Section 18 Auxiliary Bay Unit 1 | E148: Jaw width 150mm, Opening 175mm | G148: Installation Required | H148: 2 | I148: 2,006.00 | J148: 4,012.00
A149: 139 | B149: Bench Vice | C149: Tools | D149: Section 42 Workshop | E149: Jaw width 150mm, Opening 175mm, VICE,ENGINEERSV BENCH,ALL STEEL,EV150,JAW WIDTH 150MM,OPENING 190MM | G149: Installation Required | H149: 12 | I149: 2,006.00 | J149: 24,072.00
A150: 140 | B150: Bench Vice | C150: Tools | D150: ERI Turbo Gen Services (TGS) Workshop 5 | E150: Jaw width 150mm, Opening 175mm, VICE,ENGINEERSV BENCH,ALL STEEL,EV150,JAW WIDTH 150MM,OPENING 190MM | G150: Installation Required | H150: 6 | I150: 2,006.00 | J150: 12,036.00
A151: 141 | B151: Bench Vice | C151: Tools | D151: ERI Turbo Gen Services (TGS) Workshop 8 | E151: Jaw width 150mm, Opening 175mm, VICE,ENGINEERSV BENCH,ALL STEEL,EV150,JAW WIDTH 150MM,OPENING 190MM | G151: Required | H151: 4 | I151: 2,006.00 | J151: 8,024.00
A152: 142 | B152: Bench Vice | C152: Tools | D152: Section 42 Workshop | E152: Jaw width 150mm, Opening 175mm, VICE,ENGINEERSV BENCH,ALL STEEL,EV150,JAW WIDTH 150MM,OPENING 190MM | H152: 4 | I152: 2,006.00 | J152: 8,024.00
A153: 143 | B153: Bench Vice | C153: Tools | D153: Section 42 Workshop | E153: Jaw width 150mm, Opening 175mm, VICE,ENGINEERSV BENCH,ALL STEEL,EV150,JAW WIDTH 150MM,OPENING 190MM | H153: 2 | I153: 2,006.00 | J153: 4,012.00
A154: 144 | B154: Bench Vice | C154: Tools | D154: Mill Maintenance Workshop | E154: Jaw width 150mm, Opening 175mm, VICE,ENGINEERSV BENCH,ALL STEEL,EV150,JAW WIDTH 150MM,OPENING 190MM | G154: No | H154: 4 | I154: 2,006.00 | J154: 8,024.00
A155: 145 | B155: Bench Vice | C155: Tools | D155: Welding Workshop | E155: Jaw width 150mm, Opening 175mm, VICE,ENGINEERSV BENCH,ALL STEEL,EV150,JAW WIDTH 150MM,OPENING 190MM | G155: Required | H155: 8 | I155: 2,006.00 | J155: 16,048.00
A156: 146 | B156: Bolt cutter. | C156: Tools | D156: Batch Plant Workshop | E156: 30" Overall Length Capacity for high-tensile steel bolts, and chain | F156: RACO/ L-STONE | G156: No | H156: 3 | I156: 448.00 | J156: 1,344.00
A157: 147 | B157: Bolt cutter. | C157: Tools | D157: Section 42 Workshop | E157: 30" Overall Length Capacity for high-tensile steel bolts, and chain | G157: No | H157: 1 | I157: 1,250.00 | J157: 1,250.00
A158: 148 | B158: Bolt cutter. | C158: Tools | D158: ERI Turbo Gen Services (TGS) Workshop 7 | E158: 30" Overall Length Capacity for high-tensile steel bolts, and chain | G158: No | H158: 1 | I158: 1,250.00 | J158: 1,250.00
A159: 149 | B159: Bolt cutter. | C159: Tools | D159: ERI Turbo Gen Services (TGS) Workshop 9 | E159: 30" Overall Length Capacity for high-tensile steel bolts, and chain | G159: No | H159: 1 | I159: 1,250.00 | J159: 1,250.00
A160: 150 | B160: Bolt cutter. | C160: Tools | D160: Section 42 Workshop | E160: 30" Overall Length Capacity for high-tensile steel bolts, and chain | G160: No | H160: 1 | I160: 1,250.00 | J160: 1,250.00
A161: 151 | B161: Bolt cutter. | C161: Tools | D161: Mill Maintenance Workshop | E161: 30" Overall Length Capacity for high-tensile steel bolts, and chain | G161: No | H161: 1 | I161: 1,250.00 | J161: 1,250.00
A162: 152 | B162: Bolt cutter. | C162: Tools | D162: Batch Plant Workshop | E162: 30" Overall Length Capacity for high-tensile steel bolts, and chain | G162: No | H162: 1 | I162: 1,250.00 | J162: 1,250.00
A163: 153 | B163: bore micrometer set 25 - 600mm | C163: Tools | D163: Section 42 Workshop | F163: Mitutoyo | G163: No | H163: 4 | I163: =1140/1.15 -> 991.30 | J163: 3,965.22
A164: 154 | B164: bore micrometer set 25 - 600mm | C164: Tools | D164: Batch Plant Workshop | F164: Mitutoyo | G164: No | H164: 2 | I164: =1140/1.15 -> 991.30 | J164: 1,982.61
A165: 155 | B165: borescope | C165: Tools | D165: Section 42 Workshop | E165: Capture JPEG images or AVI video to memory card 17mm diameter camera with 704 x 576 pixels (PAL) Detachable wireless 3.5" TFT colour display Camera head and tube is IP67 water-proof Focus distance up to 250mm 50 degree viewing angle 2 adjustable bright LED's LED lighting capability up to 1.5m 1m flex and stay gooseneck (extendable) Hook, magnet and mirror attachments Must c/w case, mini camera on 1m tube, attachments, hand grip, LCD monitor, USB cable, video out cable, 2GB SD card, charger, batteries and operating manual | G165: No | H165: 1 | I165: 4,557.90 | J165: 4,557.90
A166: 156 | B166: borescope | C166: Tools | D166: Batch Plant Workshop | E166: Capture JPEG images or AVI video to memory card 17mm diameter camera with 704 x 576 pixels (PAL) Detachable wireless 3.5" TFT colour display Camera head and tube is IP67 water-proof Focus distance up to 250mm 50 degree viewing angle 2 adjustable bright LED's LED lighting capability up to 1.5m 1m flex and stay gooseneck (extendable) Hook, magnet and mirror attachments Must c/w case, mini camera on 1m tube, attachments, hand grip, LCD monitor, USB cable, video out cable, 2GB SD card, charger, batteries and operating manual | G166: No | H166: 1 | I166: 4,557.90 | J166: 4,557.90
A167: 157 | B167: Bow Shackle | C167: Tools | D167: Section 42 Workshop | E167: 500 kg | G167: No | H167: 4 | I167: 6.50 | J167: 26.00
A168: 158 | B168: Bow Shackle | C168: Tools | D168: Section 42 Workshop | E168: 1 Ton | G168: No | H168: 10 | I168: 9.80 | J168: 98.00
A169: 159 | B169: Bow Shackle | C169: Tools | D169: Section 42 Workshop | E169: 1.5 Ton | G169: No | H169: 10 | I169: 11.00 | J169: 110.00
A170: 160 | B170: Bow Shackle | C170: Tools | D170: Section 42 Workshop | E170: 2 Ton | G170: No | H170: 10 | I170: 14.00 | J170: 140.00
A171: 161 | B171: Bow Shackle | C171: Tools | D171: Section 42 Workshop | E171: 3.25 Ton | G171: No | H171: 10 | I171: 25.00 | J171: 250.00
A172: 162 | B172: Bow Shackle | C172: Tools | D172: Section 42 Workshop | E172: 4.75 Ton | G172: No | H172: 10 | I172: 36.00 | J172: 360.00
A173: 163 | B173: Bow Shackle | C173: Tools | D173: Section 42 Workshop | E173: 6,5 Ton | G173: No | H173: 2 | I173: 53.00 | J173: 106.00
A174: 164 | B174: Bow Shackle | C174: Tools | D174: Section 42 Workshop | E174: 6.5 Ton | G174: No | H174: 10 | I174: 53.00 | J174: 530.00
A175: 165 | B175: Bow Shackle | C175: Tools | D175: Section 42 Workshop | E175: 6.5 Ton | G175: No | H175: 2 | I175: 53.00 | J175: 106.00
A176: 166 | B176: Bow Shackle | C176: Tools | D176: Section 42 Workshop | E176: 6.5 Ton | G176: No | H176: 2 | I176: 53.00 | J176: 106.00
A177: 167 | B177: Bow Shackle | C177: Tools | D177: Section 42 Workshop | E177: 9.5 Ton | G177: No | H177: 10 | I177: 120.00 | J177: 1,200.00
A178: 168 | B178: Bow Shackle | C178: Tools | D178: Section 42 Workshop | E178: 12.5 Ton | G178: No | H178: 8 | I178: 160.00 | J178: 1,280.00
A179: 169 | B179: Bow Shackle | C179: Tools | D179: Section 42 Workshop | E179: 17 Ton | G179: No | H179: 8 | I179: 295.00 | J179: 2,360.00
A180: 170 | B180: Bow Shackle | C180: Tools | D180: Section 42 Workshop | E180: 25 Ton | G180: No | H180: 10 | I180: 510.00 | J180: 5,100.00
A181: 171 | B181: Bow Shackle | C181: Tools | D181: Section 42 Workshop | E181: 35 Ton | G181: No | H181: 4 | I181: 1,020.00 | J181: 4,080.00
A182: 172 | B182: Bow Shackle | C182: Tools | D182: Section 42 Workshop | E182: 55 Ton | G182: No | H182: 6 | I182: 2,450.00 | J182: 14,700.00
A183: 173 | B183: Bow Shackle | C183: Tools | D183: Section 42 Workshop | E183: 85 Ton | G183: No | H183: 8 | I183: 6,020.00 | J183: 48,160.00
A184: 174 | B184: Bow Shackle | C184: Tools | D184: Batch Plant Workshop | E184: 500 kg | G184: No | H184: 4 | I184: 6.50 | J184: 26.00
A185: 175 | B185: Bow Shackle | C185: Tools | D185: Batch Plant Workshop | E185: 1 Ton | G185: No | H185: 10 | I185: 9.80 | J185: 98.00
A186: 176 | B186: Bow Shackle | C186: Tools | D186: Batch Plant Workshop | E186: 1.5 Ton | G186: No | H186: 10 | I186: 11.00 | J186: 110.00
A187: 177 | B187: Bow Shackle | C187: Tools | D187: Batch Plant Workshop | E187: 2 Ton | G187: No | H187: 10 | I187: 14.00 | J187: 140.00
A188: 178 | B188: Bow Shackle | C188: Tools | D188: Batch Plant Workshop | E188: 3.25 Ton | G188: No | H188: 10 | I188: 25.00 | J188: 250.00
A189: 179 | B189: Bow Shackle | C189: Tools | D189: Batch Plant Workshop | E189: 4.75 Ton | G189: No | H189: 10 | I189: 36.00 | J189: 360.00
A190: 180 | B190: Bow Shackle | C190: Tools | D190: Batch Plant Workshop | E190: 6,3 Ton | G190: No | H190: 2 | I190: 53.00 | J190: 106.00
A191: 181 | B191: Bow Shackle | C191: Tools | D191: Batch Plant Workshop | E191: 6.5 Ton | G191: No | H191: 10 | I191: 53.00 | J191: 530.00
A192: 182 | B192: Bow Shackle | C192: Tools | D192: Batch Plant Workshop | E192: 6.5 Ton | G192: No | H192: 2 | I192: 53.00 | J192: 106.00
A193: 183 | B193: Bow Shackle | C193: Tools | D193: Batch Plant Workshop | E193: 6.5 Ton | G193: No | H193: 2 | I193: 53.00 | J193: 106.00
A194: 184 | B194: Bow Shackle | C194: Tools | D194: Batch Plant Workshop | E194: 9.5 Ton | G194: No | H194: 10 | I194: 120.00 | J194: 1,200.00
A195: 185 | B195: Bow Shackle | C195: Tools | D195: Batch Plant Workshop | E195: 12.5 Ton | G195: No | H195: 4 | I195: 160.00 | J195: 640.00
A196: 186 | B196: Bow Shackle | C196: Tools | D196: Batch Plant Workshop | E196: 17 Ton | G196: No | H196: 8 | I196: 295.00 | J196: 2,360.00
A197: 187 | B197: Bow Shackle | C197: Tools | D197: Batch Plant Workshop | E197: 25 Ton | G197: No | H197: 14 | I197: 510.00 | J197: 7,140.00
A198: 188 | B198: Bow Shackle | C198: Tools | D198: Batch Plant Workshop | E198: 35 Ton | G198: No | H198: 4 | I198: 1,020.00 | J198: 4,080.00
A199: 189 | B199: Bow Shackle | C199: Tools | D199: Batch Plant Workshop | E199: 55 Ton | G199: No | H199: 12 | I199: 2,450.00 | J199: 29,400.00
A200: 190 | B200: Bow Shackle | C200: Tools | D200: Batch Plant Workshop | E200: 85 Ton | G200: No | H200: 8 | I200: 6,020.00 | J200: 48,160.00
A201: 191 | B201: Cable Cutter large | C201: Tools | D201: Batch Plant Workshop | E201: Armoured Cable Ratchet Cable Cutter - 58mm O.D. Compact ratchet cable cutter, designed to cut 3 by 120mm2 armoured cable maximum. Typical maximum O.D. of cable that the tool will cut is 58mm. It will easily cut normal copper or aluminium cable. The hand | F201: HELLERMANN TYTON | G201: No | H201: 3 | I201: 4,709.00 | J201: 14,127.00
A202: 192 | B202: Cable Cutter medium | C202: Tools | D202: Batch Plant Workshop | E202: Large cable cutter for annealed copper and aluminium conductors up to 500mm2. ‘Parrot beak’ blades. Length: 805mm, Weight: 2.8kg | F202: HELLERMANN TYTON | G202: No | H202: 5 | I202: 2,259.00 | J202: 11,295.00
A203: 193 | B203: Cable Cutter small | C203: Tools | D203: Batch Plant Workshop | E203: Ratchet operated cable cutter. Compact cutter for cutting annealed copper and aluminium conductors up to 300mm2 (maximum 32mm outside diameter.) Small size enables cutting in tight spots. Ratchet reduces hand effort. Length: 260mm. Weight: 680g | G203: No | H203: 6 | I203: 1,565.00 | J203: =I203*H203 -> 9,390.00
A204: 194 | B204: Calibration and test unit with linear adaptor | C204: Tools | D204: Section 42 Workshop | E204: Test bench for torque testing of valve and damper actuators | G204: No | H204: 1 | I204: =26890/1.15 -> 23,382.61 | J204: 23,382.61
... 827 more rows

Sheet Sheet 1 (hidden)
A1: Package: | C1: P37A
A2: Department: | C2: Maintanance
A3: Project: | C3: P37A C&I, Electrical and Mechanical Workshop Off-Shelf Tools & Equipment
L5: Formulae check
A6: Item No | B6: Description | C6: Category | D6: Building | E6: QTY | F6: Specification | G6: Brand | H6: Installation | I6: RATE | J6: AMOUNT | L6: RATE | M6: AMOUNT
A8: 1 | B8: "D" Shackle | C8: Tools | D8: Section 42 Workshop | E8: 2 | F8: 750kg | H8: No | I8: 7.40 | J8: =I8*E8 -> 14.80 | L8: 7.40 | M8: =L8*E8 -> 14.80
A9: 2 | B9: "D" Shackle | C9: Tools | D9: Section 42 Workshop | E9: 5 | F9: 1.5 Ton | H9: No | I9: 11.65 | J9: 58.25 | L9: 11.65 | M9: 58.25
A10: 3 | B10: "D" Shackle | C10: Tools | D10: Section 42 Workshop | E10: 8 | F10: 2 Ton | H10: No | I10: 16.50 | J10: 132.00 | L10: 16.50 | M10: 132.00
A11: 4 | B11: "D" Shackle | C11: Tools | D11: Section 42 Workshop | E11: 3 | F11: 3 Ton | H11: No | I11: 23.00 | J11: 69.00 | L11: 23.00 | M11: 69.00
A12: 5 | B12: "D" Shackle | C12: Tools | D12: Section 42 Workshop | E12: 2 | F12: 3.25 Ton | H12: No | I12: 23.00 | J12: 46.00 | L12: 23.00 | M12: 46.00
A13: 6 | B13: "D" Shackle | C13: Tools | D13: Section 42 Workshop | E13: 2 | F13: 3.75 Ton | H13: No | I13: 23.00 | J13: 46.00 | L13: 23.00 | M13: 46.00
A14: 7 | B14: "D" Shackle | C14: Tools | D14: Section 42 Workshop | E14: 3 | F14: 4.75 Ton | H14: No | I14: 37.00 | J14: 111.00 | L14: 37.00 | M14: 111.00
A15: 8 | B15: "D" Shackle | C15: Tools | D15: Section 42 Workshop | E15: 2 | F15: 7 Ton | H15: No | I15: 96.00 | J15: 192.00 | L15: 96.00 | M15: 192.00
A16: 9 | B16: "D" Shackle | C16: Tools | D16: Section 42 Workshop | E16: 2 | F16: 9 Ton | H16: No | I16: 105.00 | J16: 210.00 | L16: 105.00 | M16: 210.00
A17: 10 | B17: "D" Shackle | C17: Tools | D17: Section 42 Workshop | E17: 2 | F17: 10 Ton | H17: No | I17: 153.00 | J17: 306.00 | L17: 153.00 | M17: 306.00
A18: 11 | B18: "D" Shackle | C18: Tools | D18: Section 42 Workshop | E18: 2 | F18: 13 Ton | H18: No | I18: 190.00 | J18: 380.00 | L18: 190.00 | M18: 380.00
A19: 12 | B19: "D" Shackle | C19: Tools | D19: Section 42 Workshop | E19: 2 | F19: 200 Ton | H19: No | I19: =3350*2 -> 6,700.00 | J19: 13,400.00 | L19: =3350*2 -> 6,700.00 | M19: 13,400.00
A20: 13 | B20: "D" Shackle | C20: Tools | D20: Batch Plant Workshop | E20: 2 | F20: 750kg | H20: No | I20: 7.40 | J20: 14.80 | L20: 7.40 | M20: 14.80
A21: 14 | B21: "D" Shackle | C21: Tools | D21: Batch Plant Workshop | E21: 5 | F21: 1.5 Ton | H21: No | I21: 11.65 | J21: 58.25 | L21: 11.65 | M21: 58.25
A22: 15 | B22: "D" Shackle | C22: Tools | D22: Batch Plant Workshop | E22: 8 | F22: 2 Ton | H22: No | I22: 16.50 | J22: 132.00 | L22: 16.50 | M22: 132.00
A23: 16 | B23: "D" Shackle | C23: Tools | D23: Batch Plant Workshop | E23: 4 | F23: 3 Ton | H23: No | I23: 23.00 | J23: 92.00 | L23: 23.00 | M23: 92.00
A24: 17 | B24: "D" Shackle | C24: Tools | D24: Batch Plant Workshop | E24: 4 | F24: 3.25 Ton | H24: No | I24: 23.00 | J24: 92.00 | L24: 23.00 | M24: 92.00
A25: 18 | B25: "D" Shackle | C25: Tools | D25: Batch Plant Workshop | E25: 2 | F25: 3.75 Ton | H25: No | I25: 23.00 | J25: 46.00 | L25: 23.00 | M25: 46.00
A26: 19 | B26: "D" Shackle | C26: Tools | D26: Batch Plant Workshop | E26: 3 | F26: 4.75 Ton | H26: No | I26: 37.00 | J26: 111.00 | L26: 37.00 | M26: 111.00
A27: 20 | B27: "D" Shackle | C27: Tools | D27: Batch Plant Workshop | E27: 2 | F27: 7 Ton | H27: No | I27: 96.00 | J27: 192.00 | L27: 96.00 | M27: 192.00
A28: 21 | B28: "D" Shackle | C28: Tools | D28: Batch Plant Workshop | E28: 2 | F28: 9 Ton | H28: No | I28: 105.00 | J28: 210.00 | L28: 105.00 | M28: 210.00
A29: 22 | B29: "D" Shackle | C29: Tools | D29: Batch Plant Workshop | E29: 2 | F29: 10 Ton | H29: No | I29: 153.00 | J29: 306.00 | L29: 153.00 | M29: 306.00
A30: 23 | B30: "D" Shackle | C30: Tools | D30: Batch Plant Workshop | E30: 2 | F30: 13 Ton | H30: No | I30: 190.00 | J30: 380.00 | L30: 190.00 | M30: 380.00
A31: 24 | B31: "D" Shackle | C31: Tools | D31: Batch Plant Workshop | E31: 2 | F31: 200 Ton | H31: No | I31: =3350*2 -> 6,700.00 | J31: 13,400.00 | L31: =3350*2 -> 6,700.00 | M31: 13,400.00
A32: 25 | B32: 0 - 150mm outside micrometer | C32: Tools | D32: Section 42 Workshop | E32: 2 | F32: Type: Standard Range: 0 -150mm Graduation: 0.01mm, 0,001mm Accuracy: ±2µm Flatness: 0.6µm Measuring Faces: Carbide Parallelism: (2+R/100)µm, R = max. range (mm) | G32: Mitutoyo | H32: No | I32: =250*14 -> 3,500.00 | J32: 7,000.00 | L32: =250*14 -> 3,500.00 | M32: 7,000.00
A33: 26 | B33: 0 - 150mm outside micrometer | C33: Tools | D33: Batch Plant Workshop | E33: 2 | F33: Type: Standard Range: 0 -150mm Graduation: 0.01mm, 0,001mm Accuracy: ±2µm Flatness: 0.6µm Measuring Faces: Carbide Parallelism: (2+R/100)µm, R = max. range (mm) | G33: Mitutoyo | H33: No | I33: =250*14 -> 3,500.00 | J33: 7,000.00 | L33: =250*14 -> 3,500.00 | M33: 7,000.00
A34: 27 | B34: 0 - 25mm Outside micrometer | C34: Tools | D34: Section 42 Workshop | E34: 3 | F34: Baked enamel finished frame Carbide measuring faces Equipped with ratchet stop for constant measuring force Maximum measuring range up to 25mm 0.01mm of graduation Accuracy of ±2µm | G34: Mitutoyo | H34: No | I34: =68.64*18 -> 1,235.52 | J34: 3,706.56 | L34: =68.64*18 -> 1,235.52 | M34: 3,706.56
A35: 28 | B35: 0 - 25mm Outside micrometer | C35: Tools | D35: Batch Plant Workshop | E35: 3 | F35: Baked enamel finished frame Carbide measuring faces Equipped with ratchet stop for constant measuring force Maximum measuring range up to 25mm 0.01mm of graduation Accuracy of ±2µm | G35: Mitutoyo | H35: No | I35: =68.64*18 -> 1,235.52 | J35: 3,706.56 | L35: =1430/1.15 -> 1,243.48 | M35: 3,730.43
A36: 29 | B36: 11 drawer roller cabinet | C36: Tools | D36: Section 42 Workshop | E36: 4 | F36: Height: 1435 mm Width: 705 mm Depth: 485 mm Qty lengthwise dividers: 16x Piece Qty crosswise dividers: 4x Piece Weight: 123 kg Number of drawers: 11 Piece | G36: GEDORE | H36: No | I36: 22,002.41 | J36: 88,009.64 | L36: =I36 -> 22,002.41 | M36: 88,009.64
A37: 30 | B37: 11 drawer roller cabinet | C37: Tools | D37: Batch Plant Workshop | E37: 4 | F37: Height: 1435 mm Width: 705 mm Depth: 485 mm Qty lengthwise dividers: 16x Piece Qty crosswise dividers: 4x Piece Weight: 123 kg Number of drawers: 11 Piece | G37: GEDORE | H37: No | I37: 22,002.41 | J37: 88,009.64 | L37: =I37 -> 22,002.41 | M37: 88,009.64
A38: 31 | B38: 12mm boring bar iso insert type tpmr | C38: Tools | D38: Section 42 Workshop | E38: 6 | H38: No | I38: 365.00 | J38: 2,190.00 | L38: 365.00 | M38: 2,190.00
A39: 32 | B39: 16mm boring bar iso insert type tpmr | C39: Tools | D39: Section 42 Workshop | E39: 6 | H39: No | J39: 0 | M39: 0
A40: 33 | B40: 2 Legged Chain sling | C40: Tools | D40: Section 42 Workshop | E40: 2 | F40: 1 Ton | H40: No | I40: 385.00 | J40: 770.00 | L40: 385.00 | M40: 770.00
A41: 34 | B41: 2 Legged Chain sling | C41: Tools | D41: Batch Plant Workshop | E41: 2 | F41: 1 Ton | H41: No | I41: 385.00 | J41: 770.00 | L41: 385.00 | M41: 770.00
A42: 35 | B42: 2 Legged Steel sling | C42: Tools | D42: Section 42 Workshop | E42: 2 | F42: 500kg | I42: 385.00 | J42: 770.00 | L42: 385.00 | M42: 770.00
A43: 36 | B43: 2 Legged Steel sling | C43: Tools | D43: Batch Plant Workshop | E43: 2 | F43: 500kg | H43: No | I43: 385.00 | J43: 770.00 | L43: 385.00 | M43: 770.00
A44: 37 | B44: 200mm scriber | C44: Tools | E44: 10 | F44: LIS-31800, LIS31800; Features and Benefits: Ideal for marking most metal and softer material surfaces. Comes with straight and 90 degree points to mark in even the tightest places Heat-treated carbon steel | H44: No | I44: 37.41 | J44: 374.10 | L44: 37.41 | M44: 374.10
A45: 38 | B45: 2020 left hand turning tool iso insert type tpmr (Lathe cutting tool insert) | C45: Tools | D45: Section 42 Workshop | E45: 6 | J45: 0 | L45: 283.43 | M45: 1,700.58
A46: 39 | B46: 2020 right turning tool iso insert type tpmr | C46: Tools | D46: Section 42 Workshop | E46: 6 | J46: 0 | L46: 283.43 | M46: 1,700.58
A47: 40 | B47: 20mm boring bar iso insert type tpmr | C47: Tools | D47: Section 42 Workshop | E47: 6 | J47: 0 | M47: 0
A48: 41 | B48: 20mm internal thread cutting boring bar top clamp | C48: Tools | D48: Section 42 Workshop | E48: 6 | J48: 0 | M48: 0
A49: 42 | B49: 25 - 50mm inside micrometer | C49: Tools | D49: Section 42 Workshop | E49: 2 | F49: Interchangeable rod type Graduation: 0.01mm Travel of head: 7mm with 2 rods | G49: Mitutoyo | J49: 0 | M49: 0
A50: 43 | B50: 25 - 50mm inside micrometer | C50: Tools | D50: Batch Plant Workshop | E50: 2 | F50: Interchangeable rod type Graduation: 0.01mm Travel of head: 7mm with 2 rods | G50: Mitutoyo | H50: No | J50: 0 | M50: 0
A51: 44 | B51: 25 - 50mm outside micrometer | C51: Tools | D51: Section 42 Workshop | E51: 3 | F51: Type: Standard Range: 25 -50mm Graduation: 0.01mm Accuracy: ±2µm Flatness: 0.6µm Measuring Faces: Carbide Parallelism: (2+R/100)µm, R = max. range (mm) | G51: Mitutoyo | J51: 0 | L51: =1640/1.15 -> 1,426.09 | M51: 4,278.26
A52: 45 | B52: 25 - 50mm outside micrometer | C52: Tools | D52: Batch Plant Workshop | E52: 3 | F52: Type: Standard Range: 25 -50mm Graduation: 0.01mm Accuracy: ±2µm Flatness: 0.6µm Measuring Faces: Carbide Parallelism: (2+R/100)µm, R = max. range (mm) | G52: Mitutoyo | H52: No | J52: 0 | M52: 0
A53: 46 | B53: 2525 left hand turning tool iso insert type tpmr | C53: Tools | D53: Section 42 Workshop | E53: 6 | J53: 0 | M53: 0
A54: 47 | B54: 2525 right turning tool iso insert type tpmr | C54: Tools | D54: Section 42 Workshop | E54: 6 | J54: 0 | M54: 0
A55: 48 | B55: 25mm boring bar iso insert type tpmr | C55: Tools | D55: Section 42 Workshop | E55: 6 | J55: 0 | M55: 0
A56: 49 | B56: 300mm hacksaw blade | C56: Tools | E56: 100 | F56: Hacksaw blade 18,24 and 32 TPI - pack of 10. For 435mm Hacksaw | G56: GEDORE | H56: No | I56: 6.60 | J56: =I56*E56 -> 660.00 | L56: =(200/50)/1.15 -> 3.48 | M56: 347.83
A57: 50 | B57: 300mm steel ruler | C57: Tools | E57: 12 | F57: Stainless steel ruler 300mm | G57: GEDORE | H57: No | I57: 50.00 | J57: =I57*E57 -> 600.00 | L57: =I57 -> 50.00 | M57: 600.00
A58: 51 | B58: 4 Legged Chain sling | C58: Tools | D58: Section 42 Workshop | E58: 2 | F58: 3,36 Ton | H58: No | J58: 0 | L58: 2,635.00 | M58: 5,270.00
A59: 52 | B59: 4 Legged Chain sling | C59: Tools | D59: Section 42 Workshop | E59: 2 | F59: 6.62 Ton | H59: No | I59: 2,200.00 | J59: 4,400.00 | L59: 2,200.00 | M59: 4,400.00
A60: 53 | B60: 4 Legged Chain sling | C60: Tools | D60: Section 42 Workshop | E60: 2 | F60: 7.5Ton | H60: No | I60: 2,045.00 | J60: 4,090.00 | L60: 2,045.00 | M60: 4,090.00
A61: 54 | B61: 4 Legged Chain sling | C61: Tools | D61: Batch Plant Workshop | E61: 2 | F61: 3,36 Ton | H61: No | I61: 825.00 | J61: 1,650.00 | L61: 825.00 | M61: 1,650.00
A62: 55 | B62: 4 Legged Chain sling | C62: Tools | D62: Batch Plant Workshop | E62: 2 | F62: 6.62 Ton | H62: No | I62: 2,200.00 | J62: 4,400.00 | L62: 2,200.00 | M62: 4,400.00
A63: 56 | B63: 4 Legged Chain sling | C63: Tools | D63: Batch Plant Workshop | E63: 2 | F63: 7.5Ton | H63: No | I63: 2,045.00 | J63: 4,090.00 | L63: 2,045.00 | M63: 4,090.00
A64: 57 | B64: 4 Legged Steel sling | C64: Tools | D64: Section 42 Workshop | E64: 2 | F64: 4.5 Ton | H64: No | I64: 820.00 | J64: 1,640.00 | L64: 820.00 | M64: 1,640.00
A65: 58 | B65: 4 Legged Steel sling | C65: Tools | D65: Section 42 Workshop | E65: 2 | F65: 11 Ton | H65: No | I65: 5,300.00 | J65: 10,600.00 | L65: 5,300.00 | M65: 10,600.00
A66: 59 | B66: 4 Legged Steel sling | C66: Tools | D66: Section 42 Workshop | E66: 4 | F66: 16.8Ton | H66: No | I66: 8,720.00 | J66: 34,880.00 | L66: 8,720.00 | M66: 34,880.00
A67: 60 | B67: 4 Legged Steel sling | C67: Tools | D67: Batch Plant Workshop | E67: 2 | F67: 4.5 Ton | H67: No | I67: 820.00 | J67: 1,640.00 | L67: 820.00 | M67: 1,640.00
A68: 61 | B68: 4 Legged Steel sling | C68: Tools | D68: Batch Plant Workshop | E68: 2 | F68: 11 Ton | H68: No | I68: 5,300.00 | J68: 10,600.00 | L68: 5,300.00 | M68: 10,600.00
A69: 62 | B69: 4 Legged Steel sling | C69: Tools | D69: Batch Plant Workshop | E69: 2 | F69: 16.8Ton | H69: No | I69: 8,720.00 | J69: 17,440.00 | L69: 8,720.00 | M69: 17,440.00
A70: 63 | B70: 5 compartment Sheet metal Electrician Toolbox | C70: Tools | E70: 10 | F70: Strong structure , Smooth operating hinges.Round carrying plastic handle and lockable with required tools inside. | H70: No | I70: 683.00 | J70: 6,830.00 | L70: 683.00 | M70: =L70*E70 -> 6,830.00
A71: 64 | B71: 50 - 200mm inside micrometer | C71: Tools | D71: Section 42 Workshop | E71: 2 | F71: Type: Standard Range: 50 -200mm Graduation: 0.01mm Accuracy: ±(6+L/50)µm* Flatness: 0.6µm Head adjustment range: 13mm | G71: Mitutoyo | H71: No | J71: 0 | L71: 3,289.00 | M71: =L71*E71 -> 6,578.00
A72: 65 | B72: 50 - 200mm inside micrometer | C72: Tools | D72: Batch Plant Workshop | E72: 2 | F72: Type: Standard Range: 50 -200mm Graduation: 0.01mm Accuracy: ±(6+L/50)µm* Flatness: 0.6µm Head adjustment range: 13mm | G72: Mitutoyo | H72: No | J72: 0 | L72: 3,289.00 | M72: 6,578.00
A73: 66 | B73: 5m steel measuring tape | C73: Tools | E73: 10 | F73: 5m nylon measuring tape with belt clip. | G73: 3M | H73: No | I73: 89.00 | J73: 890.00 | L73: 89.00 | M73: 890.00
A74: 67 | B74: 90 degree countersink 25mm dia x 10mm shank | C74: Tools | D74: Section 42 Workshop | E74: 6 | H74: No | I74: 482.80 | J74: 2,896.80 | L74: 482.80 | M74: 2,896.80
A75: 68 | B75: 90 degree countersink 25mm dia x 10mm shank | C75: Tools | D75: Batch Plant Workshop | E75: 2 | H75: No | I75: 482.80 | J75: 965.60 | L75: 482.80 | M75: 965.60
A76: 69 | B76: adjustable hacksaw 300mm | C76: Tools | D76: Section 42 Workshop | E76: 3 | H76: No | I76: 473.00 | J76: 1,419.00 | L76: 286.00 | M76: 858.00
A77: 70 | B77: adjustable hacksaw 300mm | C77: Tools | D77: Batch Plant Workshop | E77: 2 | H77: No | I77: 473.00 | J77: 946.00 | L77: 286.00 | M77: 572.00
A78: 71 | B78: Adjustable Wrenches | C78: Tools | E78: 3 | F78: 18 inche | G78: GEDORE | H78: No | I78: 392.70 | J78: 1,178.10 | L78: 347.00 | M78: 1,041.00
A79: 72 | B79: Adjustable Wrenches | C79: Tools | E79: 3 | F79: 24 inche | G79: GEDORE | H79: No | I79: 517.07 | J79: 1,551.21 | L79: 498.06 | M79: 1,494.18
A80: 73 | B80: Adjustable Wrenches | C80: Tools | D80: Section 42 Workshop | E80: 2 | F80: 18 inch,WRENCH,ADJUSTABLE SHIFTER,H/DUTY,450MM | G80: GEDORE | H80: No | I80: 392.70 | J80: 785.40 | L80: 347.00 | M80: 694.00
A81: 74 | B81: Adjustable Wrenches | C81: Tools | D81: Section 42 Workshop | E81: 2 | F81: 24 inche, WRENCH,ADJUSTABLE SHIFTER,H/DUTY,600MM | G81: GEDORE | H81: No | I81: 517.07 | J81: 1,034.14 | L81: 498.06 | M81: 996.12
A82: 75 | B82: Adjustable Wrenches | C82: Tools | D82: ERI Turbo Gen Services (TGS) Workshop 2 | E82: 2 | F82: 18 inche, WRENCH,ADJUSTABLE SHIFTER,H/DUTY,450MM | G82: GEDORE | H82: No | I82: 392.70 | J82: 785.40 | L82: 347.00 | M82: 694.00
A83: 76 | B83: Adjustable Wrenches | C83: Tools | D83: ERI Turbo Gen Services (TGS) Workshop 3 | E83: 2 | F83: 24 inche, WRENCH,ADJUSTABLE SHIFTER,H/DUTY,600MM | G83: GEDORE | H83: No | I83: 517.07 | J83: 1,034.14 | L83: 498.06 | M83: 996.12
A84: 77 | B84: Adjustable Wrenches | C84: Tools | D84: ERI Turbo Gen Services (TGS) Workshop 1 | E84: 1 | F84: 18 inche, WRENCH,ADJUSTABLE SHIFTER,H/DUTY,450MM | G84: GEDORE | H84: No | I84: 392.70 | J84: 392.70 | L84: 347.00 | M84: 347.00
A85: 78 | B85: Adjustable Wrenches | C85: Tools | D85: ERI Turbo Gen Services (TGS) Workshop 2 | E85: 1 | F85: 24 inche, WRENCH,ADJUSTABLE SHIFTER,H/DUTY,600MM | G85: GEDORE | H85: No | I85: 517.07 | J85: 517.07 | L85: 498.06 | M85: 498.06
A86: 79 | B86: Adjustable Wrenches | C86: Tools | D86: Section 42 Workshop | E86: 2 | F86: 18 inche, WRENCH,ADJUSTABLE SHIFTER,H/DUTY,450MM | G86: GEDORE | H86: No | I86: 392.70 | J86: 785.40 | L86: 347.00 | M86: 694.00
A87: 80 | B87: Adjustable Wrenches | C87: Tools | D87: Section 42 Workshop | E87: 2 | F87: 24 inche, WRENCH,ADJUSTABLE SHIFTER,H/DUTY,600MM | G87: GEDORE | H87: No | I87: 517.07 | J87: 1,034.14 | L87: 498.06 | M87: 996.12
A88: 81 | B88: Adjustable Wrenches | C88: Tools | D88: Mill Maintenance Workshop | E88: 2 | F88: 18 inche, WRENCH,ADJUSTABLE SHIFTER,H/DUTY,450MM | G88: GEDORE | H88: No | I88: 392.70 | J88: 785.40 | L88: 347.00 | M88: 694.00
A89: 82 | B89: Adjustable Wrenches | C89: Tools | D89: Mill Maintenance Workshop | E89: 2 | F89: 24 inche, WRENCH,ADJUSTABLE SHIFTER,H/DUTY,600MM | G89: GEDORE | H89: No | I89: 517.07 | J89: 1,034.14 | L89: 498.06 | M89: 996.12
A90: 83 | B90: Adjustable Wrenches | C90: Tools | D90: Welding Workshop | E90: 1 | F90: 18 inche, WRENCH,ADJUSTABLE SHIFTER,H/DUTY,450MM | G90: GEDORE | H90: No | I90: 392.70 | J90: 392.70 | L90: 347.00 | M90: 347.00
A91: 84 | B91: Adjustable Wrenches | C91: Tools | D91: Welding Workshop | E91: 1 | F91: 24 inche, WRENCH,ADJUSTABLE SHIFTER,H/DUTY,600MM | G91: GEDORE | H91: No | I91: 517.07 | J91: 517.07 | L91: 498.06 | M91: 498.06
A92: 85 | B92: Adjustable Wrenches | C92: Tools | D92: Batch Plant Workshop | E92: 2 | F92: 18 inche,WRENCH,ADJUSTABLE SHIFTER,H/DUTY,450MM | G92: GEDORE | H92: No | I92: 392.70 | J92: 785.40 | L92: 347.00 | M92: 694.00
A93: 86 | B93: Adjustable Wrenches | C93: Tools | D93: Batch Plant Workshop | E93: 2 | F93: 24 inche, WRENCH,ADJUSTABLE SHIFTER,H/DUTY,600MM | G93: GEDORE | H93: No | I93: 517.07 | J93: 1,034.14 | L93: 498.06 | M93: 996.12
A94: 87 | B94: Allen Keys - imperial set long arm 9 piece | C94: Tools | D94: Section 42 Workshop | E94: 6 | H94: No | J94: 0 | L94: 326.60 | M94: 1,959.60
A95: 88 | B95: Allen Keys - imperial set long arm 9 piece | C95: Tools | D95: Batch Plant Workshop | E95: 3 | H95: No | J95: 0 | L95: 326.60 | M95: 979.80
A96: 89 | B96: Allen Keys - metric set long arm 9 piece | C96: Tools | D96: Section 42 Workshop | E96: 6 | H96: No | J96: 0 | L96: 326.60 | M96: 1,959.60
A97: 90 | B97: Allen Keys - metric set long arm 9 piece | C97: Tools | D97: Batch Plant Workshop | E97: 3 | H97: No | J97: 0 | L97: 326.60 | M97: 979.80
A98: 91 | B98: Allen Keys Imperial | C98: Tools | E98: 14 | F98: Imperial set, 1/16, 5/64, 3/32, 1/8, 5/32, 3/16, 7/32, 1/4, 5/16, 3/8". - 1/2" square | G98: Off the shelf | H98: No | I98: 181.00 | J98: 2,534.00 | L98: 181.00 | M98: 2,534.00
A99: 92 | B99: Allen Keys Metric | C99: Tools | E99: 14 | F99: Metric, 1.5mm, 2mm, 2.5mm, 3mm, 4mm, 5mm, 6mm, 8mm, 10mm. - 1/2" square | G99: Off the shelf | H99: No | I99: 181.00 | J99: 2,534.00 | L99: 181.00 | M99: 2,534.00
A100: 93 | B100: Angle Grinder | C100: Tools | D100: Section 42 Workshop | E100: 2 | F100: 2400W 230V 50 Hz 6000 rpm with spindle lock Blade size 230x22,2mm | G100: Bosch | H100: No | I100: 2,310.00 | J100: 4,620.00 | L100: =2310/1.15 -> 2,008.70 | M100: 4,017.39 | O100: 135.68
A101: 94 | B101: Angle Grinder | C101: Tools | D101: ERI Turbo Gen Services (TGS) Workshop 4 | E101: 2 | F101: 2400W 230V 50 Hz 6000 rpm with spindle lock Blade size 230x22,2mm | H101: No | I101: 2,310.00 | J101: 4,620.00 | L101: 2,008.70 | M101: 4,017.39 | O101: =3160 -> 3160.00
A102: 95 | B102: Angle Grinder | C102: Tools | D102: ERI Turbo Gen Services (TGS) Workshop 3 | E102: 2 | F102: 2400W 230V 50 Hz 6000 rpm with spindle lock Blade size 230x22,2mm | H102: No | I102: 2,310.00 | J102: 4,620.00 | L102: 2,008.70 | M102: 4,017.39 | O102: =3160 -> 3160.00
A103: 96 | B103: Angle Grinder | C103: Tools | D103: Section 42 Workshop | E103: 2 | F103: 2400W 230V 50 Hz 6000 rpm with spindle lock Blade size 230x22,2mm | H103: No | I103: 2,310.00 | J103: 4,620.00 | L103: 2,008.70 | M103: 4,017.39
A104: 97 | B104: Angle Grinder | C104: Tools | D104: Mill Maintenance Workshop | E104: 2 | F104: 2400W 230V 50 Hz 6000 rpm with spindle lock Blade size 230x22,2mm | G104: Bosch | H104: No | I104: 2,310.00 | J104: 4,620.00 | L104: 2,008.70 | M104: 4,017.39 | O104: 1193.50
A105: 98 | B105: Angle Grinder | C105: Tools | D105: Welding Workshop | E105: 6 | F105: 2400W 230V 50 Hz 6000 rpm with spindle lock Blade size 230x22,2mm | H105: No | I105: 2,310.00 | J105: 13,860.00 | L105: 2,008.70 | M105: 12,052.17
A106: 99 | B106: Angle Grinder | C106: Tools | D106: Batch Plant Workshop | E106: 2 | F106: 2400W 230V 50 Hz 6000 rpm with spindle lock Blade size 230x22,2mm | G106: Bosch | H106: No | I106: 2,310.00 | J106: 4,620.00 | L106: 2,008.70 | M106: 4,017.39
A107: 100 | B107: Angle Grinder - Air. | C107: Tools | D107: Section 42 Workshop | E107: 2 | F107: Lever type throttle, Disc dia 178mm, Speed 7000rpm, Air pressure 630kPa, Motor 1 HP, Air hose 13mm | G107: Bosch | H107: No | I107: 1,200.00 | J107: 2,400.00 | L107: 1,200.00 | M107: 2,400.00 | O107: 198.00
A108: 101 | B108: Angle Grinder - Air. | C108: Tools | D108: Welding Workshop | E108: 2 | F108: Lever type throttle, Disc dia 178mm, Speed 7000rpm, Air pressure 630kPa, Motor 1 HP, Air hose 13mm | G108: Bosch | H108: No | I108: 1,200.00 | J108: 2,400.00 | L108: 1,200.00 | M108: 2,400.00 | O108: 467.00
A109: 102 | B109: Angle Grinder - Air. | C109: Tools | D109: Batch Plant Workshop | E109: 2 | F109: Lever type throttle, Disc dia 178mm, Speed 7000rpm, Air pressure 630kPa, Motor 1 HP, Air hose 13mm | G109: Bosch | H109: No | I109: 1,200.00 | J109: 2,400.00 | L109: 1,200.00 | M109: 2,400.00 | O109: 560.00
A110: 103 | B110: Angle Grinder - baby | C110: Tools | D110: Section 42 Workshop | E110: 2 | F110: 900W 230V 50 Hz 11000 rpm with spindle lock Blade size 115x22,2mm | H110: No | I110: 1,114.00 | J110: 2,228.00 | L110: 1,114.00 | M110: 2,228.00 | O110: 290.00
A111: 104 | B111: Angle Grinder - baby | C111: Tools | D111: Welding Workshop | E111: 2 | F111: 900W 230V 50 Hz 11000 rpm with spindle lock Blade size 115x22,2mm | G111: Bosch | H111: No | I111: 1,114.00 | J111: 2,228.00 | L111: 1,114.00 | M111: 2,228.00
A112: 105 | B112: Angle Grinder - baby | C112: Tools | D112: Batch Plant Workshop | E112: 2 | F112: 900W 230V 50 Hz 11000 rpm with spindle lock Blade size 115x22,2mm | H112: No | I112: 1,114.00 | J112: 2,228.00 | L112: 1,114.00 | M112: 2,228.00 | O112: 439.00
A113: 106 | B113: Angle iron rolling machine hydraulic | C113: Tools | D113: Welding Workshop | E113: 1 | F113: BPRC/602/F/E | H113: No | J113: 0 | M113: 0 | O113: 439.00
A114: 107 | B114: Auma actuator test kit | C114: Tools | D114: Section 18 Auxiliary Bay Unit 1 | E114: 1 | F114: Enquire with Auma | H114: No | J114: 0 | M114: 0
A115: 108 | B115: BA Tap and Die Set in Wooden Box | C115: Tools | E115: 6 | F115: BA 0 - 10 sizes 0, 1, 2, 3, 4, 5, 6, 7, 8, 9, 10 - Each set contains 2 Taps per size (Plug and Bottom Lead) with the corresponding Die, appropriate Tapwrench and Die Stock. | G115: HELLERMANN TYTON | H115: No | J115: 0 | M115: 0
A116: 109 | B116: Baby Angle Grinder and blades | C116: Tools | E116: 8 | F116: 900W 230V 50 Hz 11000 rpm with spindle lock Blade size 115x22,2mm | G116: MIKITA | H116: No | J116: 0 | L116: 444.00 | M116: =L116*E116 -> 3,552.00
A117: 110 | B117: Beam Clamp | C117: Tools | D117: Section 42 Workshop | E117: 2 | F117: 2 Ton | H117: No | I117: 444.00 | J117: 888.00 | L117: 759.00 | M117: 1,518.00
A118: 111 | B118: Beam Clamp | C118: Tools | D118: Section 42 Workshop | E118: 10 | F118: 3 Ton | H118: No | I118: 759.00 | J118: 7,590.00 | L118: 835.00 | M118: 8,350.00
A119: 112 | B119: Beam Clamp | C119: Tools | D119: Section 42 Workshop | E119: 10 | F119: 5 Ton | H119: No | I119: 835.00 | J119: 8,350.00 | L119: 835.00 | M119: 8,350.00
A120: 113 | B120: Beam Clamp | C120: Tools | D120: Section 42 Workshop | E120: 4 | F120: 5 Ton | H120: No | I120: 835.00 | J120: 3,340.00 | L120: 444.00 | M120: 1,776.00
A121: 114 | B121: Beam Clamp | C121: Tools | D121: Batch Plant Workshop | E121: 2 | F121: 2 Ton | H121: No | I121: 444.00 | J121: =I121*E121 -> 888.00 | L121: 759.00 | M121: 1,518.00
A122: 115 | B122: Beam Clamp | C122: Tools | D122: Batch Plant Workshop | E122: 12 | F122: 3 Ton | H122: No | I122: 759.00 | J122: 9,108.00 | L122: 835.00 | M122: 10,020.00
A123: 116 | B123: Beam Clamp | C123: Tools | D123: Batch Plant Workshop | E123: 12 | F123: 5 Ton | H123: No | I123: 835.00 | J123: 10,020.00 | L123: 835.00 | M123: 10,020.00
A124: 117 | B124: Beam Clamp | C124: Tools | D124: Batch Plant Workshop | E124: 4 | F124: 5 Ton | H124: No | I124: 835.00 | J124: 3,340.00 | L124: 835.00 | M124: 3,340.00
A125: 118 | B125: Bearing fitment kit | C125: Tools | D125: 16m level Workshop | E125: 4 | F125: Kit consist of 36 impact rings, 3 impact sleeves and a deadblow hammer all included in a carry case | G125: SFK | H125: No | I125: 7,613.00 | J125: 30,452.00 | L125: 7,613.00 | M125: 30,452.00
A126: 119 | B126: Bearing fitment kit | C126: Tools | D126: Section 42 Workshop | E126: 3 | F126: Kit consist of 36 impact rings, 3 impact sleeves and a deadblow hammer all included in a carry case | H126: No | I126: 7,613.00 | J126: 22,839.00 | L126: 7,613.00 | M126: 22,839.00
A127: 120 | B127: Bearing fitment kit | C127: Tools | D127: ERI Turbo Gen Services (TGS) Workshop 4 | E127: 1 | F127: Kit consist of 36 impact rings, 3 impact sleeves and a deadblow hammer all included in a carry case | H127: No | I127: 7,613.00 | J127: 7,613.00 | L127: 7,613.00 | M127: 7,613.00
A128: 121 | B128: Bearing fitment kit | C128: Tools | D128: Section 42 Workshop | E128: 1 | F128: Kit consist of 36 impact rings, 3 impact sleeves and a deadblow hammer all included in a carry case | H128: No | I128: 7,613.00 | J128: 7,613.00 | L128: 7,613.00 | M128: 7,613.00
A129: 122 | B129: Bearing fitment kit | C129: Tools | D129: Mill Maintenance Workshop | E129: 1 | F129: Kit consist of 36 impact rings, 3 impact sleeves and a deadblow hammer all included in a carry case | H129: No | I129: 7,613.00 | J129: 7,613.00 | L129: 7,613.00 | M129: 7,613.00
A130: 123 | B130: Bearing fitment kit | C130: Tools | D130: Batch Plant Workshop | E130: 3 | F130: Kit consist of 36 impact rings, 3 impact sleeves and a deadblow hammer all included in a carry case | H130: No | I130: 7,613.00 | J130: 22,839.00 | L130: 7,613.00 | M130: 22,839.00
A131: 124 | B131: Bearing heater | C131: Tools | D131: Section 42 Workshop | E131: 2 | F131: 380 Vac, power 12.8kW, Max dia of work piece 560mm & Max width of work piece 210mm, Max Temp 240/400 deg C. Include induction yokes 23, 30, 40, 50, 60 and 70mm | H131: No | I131: 36,900.00 | J131: 73,800.00 | L131: 36,900.00 | M131: =L131*E131 -> 73,800.00
A132: 125 | B132: Bearing heater | C132: Tools | D132: Section 42 Workshop | E132: 2 | F132: 240 Vdc Bearing size inner dia 20 - 100mm, width 50mm Temp control 0 -200 deg C | H132: No | I132: 36,900.00 | J132: 73,800.00 | L132: 36,900.00 | M132: =L132*E132 -> 73,800.00
A133: 126 | B133: Bearing heater | C133: Tools | D133: Batch Plant Workshop | E133: 2 | F133: 380 Vac, power 12.8kW, Max dia of work piece 560mm & Max width of work piece 210mm, Max Temp 240/400 deg C. Include induction yokes 23, 30, 40, 50, 60 and 70mm | H133: No | I133: 36,900.00 | J133: 73,800.00 | L133: 36,900.00 | M133: =L133*E133 -> 73,800.00
A134: 127 | B134: Bearing heater | C134: Tools | D134: Batch Plant Workshop | E134: 1 | F134: 240 Vdc Bearing size inner dia 20 - 100mm, width 50mm Temp control 0 -200 deg C | H134: No | I134: 36,900.00 | J134: 36,900.00 | L134: 36,900.00 | M134: =L134*E134 -> 36,900.00
A135: 128 | B135: Bearing puller sets Large | C135: Tools | D135: Section 42 Workshop | E135: 2 | F135: 240 Vdc Bearing size inner dia 20 - 100mm, width 50mm Temp control 0 -200 deg C | H135: No | I135: 8,200.00 | J135: 16,400.00 | L135: 8,200.00 | M135: =L135*E135 -> 16,400.00
A136: 129 | B136: Bearing puller sets Large | C136: Tools | D136: ERI Turbo Gen Services (TGS) Workshop 5 | E136: 2 | F136: 240 Vdc Bearing size inner dia 20 - 100mm, width 50mm Temp control 0 -200 deg C | G136: GEDORE | H136: No | I136: 8,200.00 | J136: 16,400.00 | L136: 7,800.50 | M136: =E136*L136 -> 15,601.00
A137: 130 | B137: Bearing puller sets Large | C137: Tools | D137: Batch Plant Workshop | E137: 1 | F137: 240 Vdc Bearing size inner dia 20 - 100mm, width 50mm Temp control 0 -200 deg C | H137: No | I137: 8,200.00 | J137: 8,200.00 | L137: 8,200.00 | M137: =L137*E137 -> 8,200.00
A138: 131 | B138: Bearing puller sets Meduim | C138: Tools | D138: Section 42 Workshop | E138: 2 | F138: 40 - 220mm, BEARING PULLER,3 LEGGES,TMMP30-230,40 TO 230MM | H138: No | I138: 4,500.00 | J138: 9,000.00 | L138: 4,500.00 | M138: =L138*E138 -> 9,000.00
A139: 132 | B139: Bearing puller sets Meduim | C139: Tools | D139: ERI Turbo Gen Services (TGS) Workshop 6 | E139: 2 | F139: 40 - 220mm, BEARING PULLER,3 LEGGES,TMMP30-230,40 TO 230MM | G139: GEDORE | H139: No | I139: 4,500.00 | J139: 9,000.00 | L139: 3,777.77 | M139: =L139*E139 -> 7,555.54
A140: 133 | B140: Bearing puller sets Meduim | C140: Tools | D140: Batch Plant Workshop | E140: 1 | F140: 40 - 220mm, BEARING PULLER,3 LEGGES,TMMP30-230,40 TO 230MM | H140: No | I140: 4,500.00 | J140: 4,500.00 | L140: 4,500.00 | M140: =L140*E140 -> 4,500.00
A141: 134 | B141: Bearing puller Small | C141: Tools | E141: 4 | F141: 24 - 100mm | G141: SFK | H141: No | I141: 2,200.00 | J141: 8,800.00 | L141: 1,120.00 | M141: =L141*E141 -> 4,480.00
A142: 135 | B142: Bearing puller Small | C142: Tools | D142: Section 42 Workshop | E142: 2 | F142: 24 - 100mm, BEARING PULLER,2 LEGGED,TMMP2-170,25 TO 170MM | H142: No | I142: 2,200.00 | J142: 4,400.00 | L142: 1,120.00 | M142: =L142*E142 -> 2,240.00
A143: 136 | B143: Bearing puller Small | C143: Tools | D143: ERI Turbo Gen Services (TGS) Workshop 7 | E143: 2 | F143: 24 - 100mm, BEARING PULLER,2 LEGGED,TMMP2-170,25 TO 170MM | H143: No | I143: 2,200.00 | J143: 4,400.00 | L143: 1,120.00 | M143: 2,240.00
A144: 137 | B144: Bearing puller Small | C144: Tools | D144: Batch Plant Workshop | E144: 1 | F144: 24 - 100mm, BEARING PULLER,2 LEGGED,TMMP2-170,25 TO 170MM | H144: No | I144: 2,200.00 | J144: 2,200.00 | L144: 1,120.00 | M144: 1,120.00
A145: 138 | B145: Bench Vice | C145: Tools | D145: Section 18 Auxiliary Bay Unit 1 | E145: 2 | F145: Jaw width 150mm, Opening 175mm | H145: Installation Required | I145: 2,006.00 | J145: 4,012.00 | L145: 2,006.00 | M145: 4,012.00
A146: 139 | B146: Bench Vice | C146: Tools | D146: Section 42 Workshop | E146: 12 | F146: Jaw width 150mm, Opening 175mm, VICE,ENGINEERSV BENCH,ALL STEEL,EV150,JAW WIDTH 150MM,OPENING 190MM | H146: Installation Required | I146: 2,006.00 | J146: 24,072.00 | L146: 2,006.00 | M146: 24,072.00
A147: 140 | B147: Bench Vice | C147: Tools | D147: ERI Turbo Gen Services (TGS) Workshop 5 | E147: 6 | F147: Jaw width 150mm, Opening 175mm, VICE,ENGINEERSV BENCH,ALL STEEL,EV150,JAW WIDTH 150MM,OPENING 190MM | H147: Installation Required | I147: 2,006.00 | J147: 12,036.00 | L147: 2,006.00 | M147: 12,036.00
A148: 141 | B148: Bench Vice | C148: Tools | D148: ERI Turbo Gen Services (TGS) Workshop 8 | E148: 4 | F148: Jaw width 150mm, Opening 175mm, VICE,ENGINEERSV BENCH,ALL STEEL,EV150,JAW WIDTH 150MM,OPENING 190MM | H148: Required | I148: 2,006.00 | J148: 8,024.00 | L148: 2,006.00 | M148: 8,024.00
A149: 142 | B149: Bench Vice | C149: Tools | D149: Section 42 Workshop | E149: 4 | F149: Jaw width 150mm, Opening 175mm, VICE,ENGINEERSV BENCH,ALL STEEL,EV150,JAW WIDTH 150MM,OPENING 190MM | I149: 2,006.00 | J149: 8,024.00 | L149: 2,006.00 | M149: 8,024.00
A150: 143 | B150: Bench Vice | C150: Tools | D150: Section 42 Workshop | E150: 2 | F150: Jaw width 150mm, Opening 175mm, VICE,ENGINEERSV BENCH,ALL STEEL,EV150,JAW WIDTH 150MM,OPENING 190MM | I150: 2,006.00 | J150: 4,012.00 | L150: 2,006.00 | M150: 4,012.00
A151: 144 | B151: Bench Vice | C151: Tools | D151: Mill Maintenance Workshop | E151: 4 | F151: Jaw width 150mm, Opening 175mm, VICE,ENGINEERSV BENCH,ALL STEEL,EV150,JAW WIDTH 150MM,OPENING 190MM | H151: No | I151: 2,006.00 | J151: 8,024.00 | L151: 2,006.00 | M151: 8,024.00
A152: 145 | B152: Bench Vice | C152: Tools | D152: Welding Workshop | E152: 8 | F152: Jaw width 150mm, Opening 175mm, VICE,ENGINEERSV BENCH,ALL STEEL,EV150,JAW WIDTH 150MM,OPENING 190MM | H152: Required | I152: 2,006.00 | J152: 16,048.00 | L152: 2,006.00 | M152: 16,048.00
A153: 146 | B153: Bolt cutter. | C153: Tools | E153: 3 | F153: 30" Overall Length Capacity for high-tensile steel bolts, and chain | G153: RACO/ L-STONE | H153: No | I153: 1,430.00 | J153: 4,290.00 | M153: =L153*E153 -> 0
A154: 147 | B154: Bolt cutter. | C154: Tools | D154: Section 42 Workshop | E154: 1 | F154: 30" Overall Length Capacity for high-tensile steel bolts, and chain | H154: No | I154: 1,430.00 | J154: 1,430.00 | L154: 1,250.00 | M154: 1,250.00
A155: 148 | B155: Bolt cutter. | C155: Tools | D155: ERI Turbo Gen Services (TGS) Workshop 7 | E155: 1 | F155: 30" Overall Length Capacity for high-tensile steel bolts, and chain | H155: No | I155: 1,430.00 | J155: 1,430.00 | L155: 1,250.00 | M155: 1,250.00
A156: 149 | B156: Bolt cutter. | C156: Tools | D156: ERI Turbo Gen Services (TGS) Workshop 9 | E156: 1 | F156: 30" Overall Length Capacity for high-tensile steel bolts, and chain | H156: No | I156: 1,430.00 | J156: 1,430.00 | L156: 1,250.00 | M156: 1,250.00
A157: 150 | B157: Bolt cutter. | C157: Tools | D157: Section 42 Workshop | E157: 1 | F157: 30" Overall Length Capacity for high-tensile steel bolts, and chain | H157: No | I157: 1,430.00 | J157: 1,430.00 | L157: 1,250.00 | M157: 1,250.00
A158: 151 | B158: Bolt cutter. | C158: Tools | D158: Mill Maintenance Workshop | E158: 1 | F158: 30" Overall Length Capacity for high-tensile steel bolts, and chain | H158: No | I158: 1,430.00 | J158: 1,430.00 | L158: 1,250.00 | M158: 1,250.00
A159: 152 | B159: Bolt cutter. | C159: Tools | D159: Batch Plant Workshop | E159: 1 | F159: 30" Overall Length Capacity for high-tensile steel bolts, and chain | H159: No | I159: 1,430.00 | J159: 1,430.00 | L159: 1,250.00 | M159: 1,250.00
A160: 153 | B160: bore micrometer set 25 - 600mm | C160: Tools | D160: Section 42 Workshop | E160: 4 | G160: Mitutoyo | H160: No | J160: 0 | L160: =1140/1.15 -> 991.30 | M160: =L160*E160 -> 3,965.22
A161: 154 | B161: bore micrometer set 25 - 600mm | C161: Tools | D161: Batch Plant Workshop | E161: 2 | G161: Mitutoyo | H161: No | J161: 0 | L161: =1140/1.15 -> 991.30 | M161: 1,982.61
A162: 155 | B162: borescope | C162: Tools | D162: Section 42 Workshop | E162: 1 | F162: Capture JPEG images or AVI video to memory card 17mm diameter camera with 704 x 576 pixels (PAL) Detachable wireless 3.5" TFT colour display Camera head and tube is IP67 water-proof Focus distance up to 250mm 50 degree viewing angle 2 adjustable bright LED's LED lighting capability up to 1.5m 1m flex and stay gooseneck (extendable) Hook, magnet and mirror attachments Must c/w case, mini camera on 1m tube, attachments, hand grip, LCD monitor, USB cable, video out cable, 2GB SD card, charger, batteries and operating manual | H162: No | I162: 6,490.00 | J162: 6,490.00 | L162: 4,557.90 | M162: 4,557.90
A163: 156 | B163: borescope | C163: Tools | D163: Batch Plant Workshop | E163: 1 | F163: Capture JPEG images or AVI video to memory card 17mm diameter camera with 704 x 576 pixels (PAL) Detachable wireless 3.5" TFT colour display Camera head and tube is IP67 water-proof Focus distance up to 250mm 50 degree viewing angle 2 adjustable bright LED's LED lighting capability up to 1.5m 1m flex and stay gooseneck (extendable) Hook, magnet and mirror attachments Must c/w case, mini camera on 1m tube, attachments, hand grip, LCD monitor, USB cable, video out cable, 2GB SD card, charger, batteries and operating manual | H163: No | I163: 6,490.00 | J163: 6,490.00 | L163: 4,557.90 | M163: 4,557.90
A164: 157 | B164: Bow Shackle | C164: Tools | D164: Section 42 Workshop | E164: 4 | F164: 500 kg | H164: No | I164: 6.50 | J164: 26.00 | L164: 6.50 | M164: 26.00
A165: 158 | B165: Bow Shackle | C165: Tools | D165: Section 42 Workshop | E165: 10 | F165: 1 Ton | H165: No | I165: 9.80 | J165: 98.00 | L165: 9.80 | M165: 98.00
A166: 159 | B166: Bow Shackle | C166: Tools | D166: Section 42 Workshop | E166: 10 | F166: 1.5 Ton | H166: No | I166: 11.00 | J166: 110.00 | L166: 11.00 | M166: 110.00
A167: 160 | B167: Bow Shackle | C167: Tools | D167: Section 42 Workshop | E167: 10 | F167: 2 Ton | H167: No | I167: 14.00 | J167: 140.00 | L167: 14.00 | M167: 140.00
A168: 161 | B168: Bow Shackle | C168: Tools | D168: Section 42 Workshop | E168: 10 | F168: 3.25 Ton | H168: No | I168: 25.00 | J168: 250.00 | L168: 25.00 | M168: 250.00
A169: 162 | B169: Bow Shackle | C169: Tools | D169: Section 42 Workshop | E169: 10 | F169: 4.75 Ton | H169: No | I169: 36.00 | J169: 360.00 | L169: 36.00 | M169: 360.00
A170: 163 | B170: Bow Shackle | C170: Tools | D170: Section 42 Workshop | E170: 2 | F170: 6,5 Ton | H170: No | I170: 53.00 | J170: 106.00 | L170: 53.00 | M170: 106.00
A171: 164 | B171: Bow Shackle | C171: Tools | D171: Section 42 Workshop | E171: 10 | F171: 6.5 Ton | H171: No | I171: 53.00 | J171: 530.00 | L171: 53.00 | M171: 530.00
A172: 165 | B172: Bow Shackle | C172: Tools | D172: Section 42 Workshop | E172: 2 | F172: 6.5 Ton | H172: No | I172: 53.00 | J172: 106.00 | L172: 53.00 | M172: 106.00
A173: 166 | B173: Bow Shackle | C173: Tools | D173: Section 42 Workshop | E173: 2 | F173: 6.5 Ton | H173: No | I173: 53.00 | J173: 106.00 | L173: 53.00 | M173: 106.00
A174: 167 | B174: Bow Shackle | C174: Tools | D174: Section 42 Workshop | E174: 10 | F174: 9.5 Ton | H174: No | I174: 120.00 | J174: 1,200.00 | L174: 120.00 | M174: 1,200.00
A175: 168 | B175: Bow Shackle | C175: Tools | D175: Section 42 Workshop | E175: 8 | F175: 12.5 Ton | H175: No | I175: 160.00 | J175: 1,280.00 | L175: 160.00 | M175: 1,280.00
A176: 169 | B176: Bow Shackle | C176: Tools | D176: Section 42 Workshop | E176: 8 | F176: 17 Ton | H176: No | I176: 295.00 | J176: 2,360.00 | L176: 295.00 | M176: 2,360.00
A177: 170 | B177: Bow Shackle | C177: Tools | D177: Section 42 Workshop | E177: 10 | F177: 25 Ton | H177: No | I177: 510.00 | J177: 5,100.00 | L177: 510.00 | M177: 5,100.00
A178: 171 | B178: Bow Shackle | C178: Tools | D178: Section 42 Workshop | E178: 4 | F178: 35 Ton | H178: No | I178: 1,020.00 | J178: 4,080.00 | L178: 1,020.00 | M178: 4,080.00
A179: 172 | B179: Bow Shackle | C179: Tools | D179: Section 42 Workshop | E179: 6 | F179: 55 Ton | H179: No | I179: 2,450.00 | J179: 14,700.00 | L179: 2,450.00 | M179: 14,700.00
A180: 173 | B180: Bow Shackle | C180: Tools | D180: Section 42 Workshop | E180: 8 | F180: 85 Ton | H180: No | I180: 6,020.00 | J180: 48,160.00 | L180: 6,020.00 | M180: 48,160.00
A181: 174 | B181: Bow Shackle | C181: Tools | D181: Batch Plant Workshop | E181: 4 | F181: 500 kg | H181: No | I181: 6.50 | J181: 26.00 | L181: 6.50 | M181: 26.00
A182: 175 | B182: Bow Shackle | C182: Tools | D182: Batch Plant Workshop | E182: 10 | F182: 1 Ton | H182: No | I182: 9.80 | J182: 98.00 | L182: 9.80 | M182: 98.00
A183: 176 | B183: Bow Shackle | C183: Tools | D183: Batch Plant Workshop | E183: 10 | F183: 1.5 Ton | H183: No | I183: 11.00 | J183: 110.00 | L183: 11.00 | M183: 110.00
A184: 177 | B184: Bow Shackle | C184: Tools | D184: Batch Plant Workshop | E184: 10 | F184: 2 Ton | H184: No | I184: 14.00 | J184: 140.00 | L184: 14.00 | M184: 140.00
A185: 178 | B185: Bow Shackle | C185: Tools | D185: Batch Plant Workshop | E185: 10 | F185: 3.25 Ton | H185: No | I185: 25.00 | J185: =I185*E185 -> 250.00 | L185: 25.00 | M185: 250.00
A186: 179 | B186: Bow Shackle | C186: Tools | D186: Batch Plant Workshop | E186: 10 | F186: 4.75 Ton | H186: No | I186: 36.00 | J186: 360.00 | L186: 36.00 | M186: 360.00
A187: 180 | B187: Bow Shackle | C187: Tools | D187: Batch Plant Workshop | E187: 2 | F187: 6,3 Ton | H187: No | I187: 53.00 | J187: 106.00 | L187: 53.00 | M187: 106.00
A188: 181 | B188: Bow Shackle | C188: Tools | D188: Batch Plant Workshop | E188: 10 | F188: 6.5 Ton | H188: No | I188: 53.00 | J188: 530.00 | L188: 53.00 | M188: 530.00
A189: 182 | B189: Bow Shackle | C189: Tools | D189: Batch Plant Workshop | E189: 2 | F189: 6.5 Ton | H189: No | I189: 53.00 | J189: 106.00 | L189: 53.00 | M189: 106.00
A190: 183 | B190: Bow Shackle | C190: Tools | D190: Batch Plant Workshop | E190: 2 | F190: 6.5 Ton | H190: No | I190: 53.00 | J190: 106.00 | L190: 53.00 | M190: 106.00
A191: 184 | B191: Bow Shackle | C191: Tools | D191: Batch Plant Workshop | E191: 10 | F191: 9.5 Ton | H191: No | I191: 120.00 | J191: 1,200.00 | L191: 120.00 | M191: 1,200.00
A192: 185 | B192: Bow Shackle | C192: Tools | D192: Batch Plant Workshop | E192: 4 | F192: 12.5 Ton | H192: No | I192: 160.00 | J192: 640.00 | L192: 160.00 | M192: 640.00
A193: 186 | B193: Bow Shackle | C193: Tools | D193: Batch Plant Workshop | E193: 8 | F193: 17 Ton | H193: No | I193: 295.00 | J193: 2,360.00 | L193: 295.00 | M193: 2,360.00
A194: 187 | B194: Bow Shackle | C194: Tools | D194: Batch Plant Workshop | E194: 14 | F194: 25 Ton | H194: No | I194: 510.00 | J194: 7,140.00 | L194: 510.00 | M194: 7,140.00
A195: 188 | B195: Bow Shackle | C195: Tools | D195: Batch Plant Workshop | E195: 4 | F195: 35 Ton | H195: No | I195: 1,020.00 | J195: 4,080.00 | L195: 1,020.00 | M195: 4,080.00
A196: 189 | B196: Bow Shackle | C196: Tools | D196: Batch Plant Workshop | E196: 12 | F196: 55 Ton | H196: No | I196: 2,450.00 | J196: 29,400.00 | L196: 2,450.00 | M196: 29,400.00
A197: 190 | B197: Bow Shackle | C197: Tools | D197: Batch Plant Workshop | E197: 8 | F197: 85 Ton | H197: No | I197: 6,020.00 | J197: 48,160.00 | L197: 6,020.00 | M197: =L197*E197 -> 48,160.00
A198: 191 | B198: Cable Cutter large | C198: Tools | E198: 3 | F198: Armoured Cable Ratchet Cable Cutter - 58mm O.D. Compact ratchet cable cutter, designed to cut 3 by 120mm2 armoured cable maximum. Typical maximum O.D. of cable that the tool will cut is 58mm. It will easily cut normal copper or aluminum cable. The hand | G198: HELLERMANN TYTON | H198: No | I198: 4,709.00 | J198: 14,127.00 | L198: 4,709.00 | M198: =L198*E198 -> 14,127.00
A199: 192 | B199: Cable Cutter medium | C199: Tools | E199: 5 | F199: Large cable cutter for annealed copper and aluminium conductors up to 500mm2. ‘Parrot beak’ blades. Length: 805mm, Weight: 2.8kg | G199: HELLERMANN TYTON | H199: No | I199: 2,259.00 | J199: 11,295.00 | L199: 2,259.00 | M199: 11,295.00
A200: 193 | B200: Cable Cutter small | C200: Tools | E200: 6 | F200: Ratchet operated cable cutter. Compact cutter for cutting annealed copper and aluminium conductors up to 300mm2 (maximum 32mm outside diameter.) Small size enables cutting in tight spots. Ratchet reduces hand effort. Length: 260mm. Weight: 680g | H200: No | I200: 1,565.00 | J200: 9,390.00 | L200: 1,565.00 | M200: 9,390.00
A201: 194 | B201: Calibration and test unit with linear adaptor | C201: Tools | D201: Section 42 Workshop | E201: 1 | F201: Test bench for torque testing of valve and damper actuators | H201: No | J201: 0 | M201: 0
A202: 195 | B202: centre drills -1 | C202: Tools | D202: Section 42 Workshop | E202: 6 | F202: Drill Dia: 1.191 mm | H202: No | J202: 0 | L202: =60.66/1.15 -> 52.75 | M202: 316.49
... 817 more rows

Sheet Sheet2 (hidden)
C10: Copper hammer | D10: Tools | F10: 6 | G10: 5lb Copper Hammer, 2" face, 14" Supergrip Fiberglass handle. | H10: THOR | I10: No
C17: Monkey Wrench | D17: Tools | E17: ERI Turbo Gen Services (TGS) Workshop 16 | F17: 2 | G17: Size (In.) 18" Jaw Opening 4 3/8"
